{"text_format":"1","workbook":"xlsx","n_sheets":22,"sheets":["RANKING 2017","CAMPEONES 2018","SUPER CHASQUI","EQUIPOS","ELITE ABIERTA","ELITE JUVENIL","ELITE MENORES","ELITE CABALLOS","AMATEUR ABIERTA","AMATEUR JUVENIL","AMATEUR MENORES","CABALLOS NOVICIOS","BINOMIOS ABIERTA","BINOMIOS LIVIANOS","PR MASTER","PR GENERAL","PR JUVENIL","PR MENORES","PR INFANTIL","PR GENERAL PREMIADA SOCIOS","PR INFANTIL PREMIADA SOCIOS","PR ADULTO-MENOR"],"not_rendered":{"charts":0,"images":0,"macros":1,"external_links":0,"defined_names":151,"comments":0,"pivot_tables":0},"unopened":[],"bounds":{"document_bytes":16777216,"sheet_cells":100000,"rows_first":2000,"rows_last":500,"rows_between":2000,"halvings":0,"cell_chars":16384,"cell_head_chars":4096},"cells_cut":0,"cells_raw":0,"read":"whole","date_system":"1900"}

{"sheet":"RANKING 2017","index":0,"n_rows":120,"n_cols":11,"rows_kept":120,"cut":false,"hidden":false,"merged":[[0,0,0,10],[105,0,105,3],[27,0,27,4],[2,0,2,3],[10,0,10,3],[19,0,19,4],[59,0,59,3],[67,0,67,4],[43,0,43,3],[51,0,51,3],[35,0,35,4],[81,0,81,3],[89,0,89,3],[97,0,97,3],[113,0,113,3],[76,5,76,10],[75,0,75,10]]}
["                                                  RANKING NACIONAL DE ENDURANCE ECUADOR 2018"]
[]
["CATEGORÍA ELITE ABIERTA        "]
[null,null,"JINETE","PUNTAJE"]
[1,"CAMPEÓN NACIONAL",{"$f":"+'ELITE ABIERTA'!D8","v":"ALMEIDA AYALA HECTOR"},{"$f":"+'ELITE ABIERTA'!Q8","v":1160.8}]
[2,"VICECAMPEÓN NACIONAL",{"$f":"+'ELITE ABIERTA'!D9","v":"VINTIMILLA PABLO"},{"$f":"+'ELITE ABIERTA'!Q9","v":1041.95}]
[3,null,{"$f":"+'ELITE ABIERTA'!D10","v":"ANDRADE JOSE DANIEL"},{"$f":"+'ELITE ABIERTA'!Q10","v":1021.6800000000001}]
[4,null,{"$f":"+'ELITE ABIERTA'!D11","v":"WEEMAELS NATHALIE"},{"$f":"+'ELITE ABIERTA'!Q11","v":668.02}]
[5,null,{"$f":"+'ELITE ABIERTA'!D12","v":"LOZADA JOSE ARMANDO"},{"$f":"+'ELITE ABIERTA'!Q12","v":573.66}]
[]
["CATEGORÍA ELITE JUVENIL       "]
[null,null,"JINETE","PUNTAJE"]
[1,"CAMPEÓN NACIONAL",{"$f":"+'ELITE JUVENIL'!D8","v":"GONZALEZ BERNARDA"},{"$f":"+'ELITE JUVENIL'!Q8","v":890.6}]
[2,"VICECAMPEÓN NACIONAL",{"$f":"+'ELITE JUVENIL'!D9","v":"LOYOLA TEODORO ANDRES"},{"$f":"+'ELITE JUVENIL'!Q9","v":527.20000000000005}]
[3,null,{"$f":"+'ELITE JUVENIL'!D10","v":"MASAPANTA LUIS"},{"$f":"+'ELITE JUVENIL'!Q10","v":418.12799999999999}]
[4,null,{"$f":"+'ELITE JUVENIL'!D11","v":"MORABOWEN MOSQUERA CESAR"},{"$f":"+'ELITE JUVENIL'!Q11","v":314}]
[5,null,{"$f":"+'ELITE JUVENIL'!D12","v":"MASAPANTA KEVIN"},{"$f":"+'ELITE JUVENIL'!Q12","v":128.80000000000001}]
[]
[]
["CATEGORÍA ELITE CABALLOS     "]
[null,null,"JINETE","JINETE/DUEÑO","PUNTAJE"]
[1,"CAMPEÓN NACIONAL",{"$f":"+'ELITE CABALLOS'!D8","v":"MARAVILLA"},{"$f":"+'ELITE CABALLOS'!E8","v":"HECTOR ALMEIDA AYALA"},{"$f":"+'ELITE CABALLOS'!R8","v":564.79999999999995}]
[2,"VICECAMPEÓN NACIONAL",{"$f":"+'ELITE CABALLOS'!D9","v":"MANDY CMB"},{"$f":"+'ELITE CABALLOS'!E9","v":"MORABOWEN CESAR"},{"$f":"+'ELITE CABALLOS'!R9","v":474.20000000000005}]
[3,null,{"$f":"+'ELITE CABALLOS'!D10","v":"SUMAYA BD"},{"$f":"+'ELITE CABALLOS'!E10","v":"MARIA JOSE HERNANDEZ"},{"$f":"+'ELITE CABALLOS'!R10","v":434.54999999999995}]
[4,null,{"$f":"+'ELITE CABALLOS'!D11","v":"SA DREAMSHA"},{"$f":"+'ELITE CABALLOS'!E11","v":"FELIPE ANDRADE"},{"$f":"+'ELITE CABALLOS'!R11","v":423.68}]
[5,null,{"$f":"+'ELITE CABALLOS'!D12","v":"JUGUETE"},{"$f":"+'ELITE CABALLOS'!E12","v":"LOYOLA TEODORO ANDRES"},{"$f":"+'ELITE CABALLOS'!R12","v":407.2}]
[]
["CATEGORÍA BINOMIOS  ABIERTA"]
[null,null,"JINETE","CABALLO","PUNTAJE"]
[1,"CAMPEÓN NACIONAL",{"$f":"+'BINOMIOS ABIERTA'!D8","v":"ALMEIDA AYALA HECTOR "},{"$f":"+'BINOMIOS ABIERTA'!F8","v":"MARAVILLA"},{"$f":"+'BINOMIOS ABIERTA'!S8","v":564.79999999999995}]
[2,"VICECAMPEÓN NACIONAL",{"$f":"+'BINOMIOS ABIERTA'!D9","v":"ANDRADE JOSE DANIEL"},{"$f":"+'BINOMIOS ABIERTA'!F9","v":"QUITA PENAS"},{"$f":"+'BINOMIOS ABIERTA'!S9","v":406}]
[3,null,{"$f":"+'BINOMIOS ABIERTA'!D10","v":"HERNANDEZ MARÍA JOSÉ "},{"$f":"+'BINOMIOS ABIERTA'!F10","v":"SUMAYA BD"},{"$f":"+'BINOMIOS ABIERTA'!S10","v":405.66999999999996}]
[4,null,{"$f":"+'BINOMIOS ABIERTA'!D11","v":"VINTIMILLA PABLO "},{"$f":"+'BINOMIOS ABIERTA'!F11","v":"BIANCA"},{"$f":"+'BINOMIOS ABIERTA'!S11","v":403.29999999999995}]
[5,null,{"$f":"+'BINOMIOS ABIERTA'!D12","v":"GONZALEZ XIMENA "},{"$f":"+'BINOMIOS ABIERTA'!F12","v":"BERNARDA"},{"$f":"+'BINOMIOS ABIERTA'!S12","v":400.8}]
[]
["CATEGORÍA BINOMIOS LIVIANOS"]
[null,null,"JINETE","CABALLO","PUNTAJE"]
[1,"CAMPEÓN NACIONAL",{"$f":"+'BINOMIOS LIVIANOS'!D8","v":"ANDRADE FELIPE ANDRES"},{"$f":"+'BINOMIOS LIVIANOS'!F8","v":"MUNIRAH"},{"$f":"+'BINOMIOS LIVIANOS'!S8","v":608.79999999999995}]
[2,"VICECAMPEÓN NACIONAL",{"$f":"+'BINOMIOS LIVIANOS'!D9","v":"LOYOLA TEODORO ANDRES"},{"$f":"+'BINOMIOS LIVIANOS'!F9","v":"JUGUETE"},{"$f":"+'BINOMIOS LIVIANOS'!S9","v":527.20000000000005}]
[3,null,{"$f":"+'BINOMIOS LIVIANOS'!D10","v":"GONZALEZ BERNARDA "},{"$f":"+'BINOMIOS LIVIANOS'!F10","v":"POLACO"},{"$f":"+'BINOMIOS LIVIANOS'!S10","v":401}]
[4,null,{"$f":"+'BINOMIOS LIVIANOS'!D11","v":"SALTOS JUAN XAVIER"},{"$f":"+'BINOMIOS LIVIANOS'!F11","v":"SAHIRA"},{"$f":"+'BINOMIOS LIVIANOS'!S11","v":374.4}]
[5,null,{"$f":"+'BINOMIOS LIVIANOS'!D12","v":"GONZALEZ BERNARDA"},{"$f":"+'BINOMIOS LIVIANOS'!F12","v":"TEQUILA"},{"$f":"+'BINOMIOS LIVIANOS'!S12","v":329.6}]
[]
["CATEGORÍA AMATEUR ABIERTA        "]
[null,null,"JINETE","PUNTAJE"]
[1,"CAMPEÓN NACIONAL",{"$f":"+'AMATEUR ABIERTA'!D8","v":"ANDRADE JUAN CARLOS"},{"$f":"+'AMATEUR ABIERTA'!Q8","v":599.04}]
[2,"VICECAMPEÓN NACIONAL",{"$f":"+'AMATEUR ABIERTA'!D9","v":"GONZALEZ JERVES XIMENA"},{"$f":"+'AMATEUR ABIERTA'!Q9","v":596.55999999999995}]
[3,null,{"$f":"+'AMATEUR ABIERTA'!D10","v":"MENDOZA KLARIZA"},{"$f":"+'AMATEUR ABIERTA'!Q10","v":250.04000000000002}]
[4,null,{"$f":"+'AMATEUR ABIERTA'!D11","v":"DIEGO CASTILLO "},{"$f":"+'AMATEUR ABIERTA'!Q11","v":247.36}]
[5,null,{"$f":"+'AMATEUR ABIERTA'!D12","v":"AGUAYO JUAN PABLO"},{"$f":"+'AMATEUR ABIERTA'!Q12","v":238.84000000000003}]
[]
["CATEGORÍA AMATEUR JUVENIL"]
[null,null,"JINETE","PUNTAJE"]
[1,"CAMPEÓN NACIONAL",{"$f":"+'AMATEUR JUVENIL'!D8","v":"DAVALOS JORGE EDUARDO"},{"$f":"+'AMATEUR JUVENIL'!Q8","v":384}]
[2,"VICECAMPEÓN NACIONAL",{"$f":"+'AMATEUR JUVENIL'!D9","v":"SALTOS JUAN XAVIER "},{"$f":"+'AMATEUR JUVENIL'!Q9","v":374.4}]
[3,null,{"$f":"+'AMATEUR JUVENIL'!D10","v":"LOYOLA LEONARDO"},{"$f":"+'AMATEUR JUVENIL'!Q10","v":322.88}]
[4,null,{"$f":"+'AMATEUR JUVENIL'!D11","v":"TORRES GIORDANO"},{"$f":"+'AMATEUR JUVENIL'!Q11","v":294.24}]
[5,null,{"$f":"+'AMATEUR JUVENIL'!D12","v":"MORENO PAULINA"},{"$f":"+'AMATEUR JUVENIL'!Q12","v":236.48000000000002}]
[]
["CATEGORÍA AMATEUR MENORES     "]
[null,null,"JINETE","PUNTAJE"]
[1,"CAMPEÓN NACIONAL",{"$f":"+'AMATEUR MENORES'!D8","v":"ANDRADE FELIPE ANDRES"},{"$f":"+'AMATEUR MENORES'!Q8","v":873.92000000000007}]
[2,"VICECAMPEÓN NACIONAL",{"$f":"+'AMATEUR MENORES'!D9","v":"CARRERA BRUNO"},{"$f":"+'AMATEUR MENORES'!Q9","v":532.6}]
[3,null,{"$f":"+'AMATEUR MENORES'!D10","v":"CARRERA CAMILA"},{"$f":"+'AMATEUR MENORES'!Q10","v":505.44}]
[4,null,{"$f":"+'AMATEUR MENORES'!D11","v":"LOPEZ JUAN RAFAEL"},{"$f":"+'AMATEUR MENORES'!Q11","v":0}]
[5,null,{"$f":"+'AMATEUR MENORES'!D12","v":"DONOSO JULIAN"},{"$f":"+'AMATEUR MENORES'!Q12","v":0}]
[]
["CATEGORÍA NOVICIOS CABALLOS      "]
[null,null,"JINETE","JINETE/DUEÑO","PUNTAJE"]
[1,"CAMPEÓN NACIONAL",{"$f":"+'CABALLOS NOVICIOS'!D8","v":"MUNIRAH"},{"$f":"+'CABALLOS NOVICIOS'!E8","v":"FELIPE ANDRADE"},{"$f":"+'CABALLOS NOVICIOS'!R8","v":608.79999999999995}]
[2,"VICECAMPEÓN NACIONAL",{"$f":"+'CABALLOS NOVICIOS'!D9","v":"BERNARDA"},{"$f":"+'CABALLOS NOVICIOS'!E9","v":"XIMENA GONZALEZ"},{"$f":"+'CABALLOS NOVICIOS'!R9","v":400.8}]
[3,null,{"$f":"+'CABALLOS NOVICIOS'!D10","v":"SIMBA"},{"$f":"+'CABALLOS NOVICIOS'!E10","v":"MARIA CONSUELO VELEZ MENA"},{"$f":"+'CABALLOS NOVICIOS'!R10","v":387.84000000000003}]
[4,null,{"$f":"+'CABALLOS NOVICIOS'!D11","v":"PAVITA"},{"$f":"+'CABALLOS NOVICIOS'!E11","v":"JUAN CARLOS ANDRADE"},{"$f":"+'CABALLOS NOVICIOS'!R11","v":380.84000000000003}]
[5,null,{"$f":"+'CABALLOS NOVICIOS'!D12","v":"ABIGAIL"},{"$f":"+'CABALLOS NOVICIOS'!E12","v":"GONZALEZ SEBASTIAN"},{"$f":"+'CABALLOS NOVICIOS'!R12","v":380.64}]
[]
["CAMPEONATO DE EQUIPOS                                        "]
[null,null,"EQUIPO","CAPITAN","PUNTAJE","               JINETES"]
[1,"CAMPEÓN NACIONAL",{"$f":"+EQUIPOS!C8","v":"SEGUROS EQUINOCCIAL"},{"$f":"+EQUIPOS!D8","v":"BERNARDO DARQUEA"},{"$f":"+EQUIPOS!U8","v":1037.1600000000001},{"$f":"+EQUIPOS!E8","v":"MARÍA JOSÉ HERNANDEZ"},{"$f":"+EQUIPOS!F8","v":"RICARDO DARQUEA"},{"$f":"+EQUIPOS!G8","v":"EMILIO DARQUEA"},{"$f":"+EQUIPOS!H8","v":"JUAN JOSÉ RECALDE"},{"$f":"+EQUIPOS!I8","v":"GABRIEL DARQUEA"},{"$f":"+EQUIPOS!J8","v":"ANDRES DARQUEA"}]
[2,"VICECAMPEÓN NACIONAL",{"$f":"+EQUIPOS!C9","v":"SELECT"},{"$f":"+EQUIPOS!D9","v":"ARMANDO SERRANO"},{"$f":"+EQUIPOS!U9","v":1017.8},{"$f":"+EQUIPOS!E9","v":"MANUELA JARAMILLO"},{"$f":"+EQUIPOS!F9","v":"JOSÉ DANIEL ANDRADE "},{"$f":"+EQUIPOS!G9","v":"JOSE LETORT MENA"},{"$f":"+EQUIPOS!H9","v":"ARMANDO SERRANO"},{"$f":"+EQUIPOS!I9","v":"FELIPE ANDRÉS ANDRADE "},{"$f":"+EQUIPOS!J9","v":"BERNARDA LETORT"}]
[3,null,{"$f":"+EQUIPOS!C10","v":"CACHAFAZ ENDURANCE "},{"$f":"+EQUIPOS!D10","v":"ARTURO RIBADENEIRA"},{"$f":"+EQUIPOS!U10","v":815.37},{"$f":"+EQUIPOS!E10","v":"MARIA EMILIA BARAHONA"},{"$f":"+EQUIPOS!F10","v":"KLARIZA MENDOZA"},{"$f":"+EQUIPOS!G10","v":"MARIA CECILIA ALZAMORA"},{"$f":"+EQUIPOS!H10","v":"CARLOS DAVALOS"},{"$f":"+EQUIPOS!I10","v":"JUAN CARLOS ANDRADE"},{"$f":"+EQUIPOS!J10","v":"ARTURO RIBADENEIRA"}]
[]
["CATEGORÍA PROMOCIONAL ABIERTA"]
[null,null,"JINETE","PUNTAJE"]
[1,"CAMPEÓN NACIONAL",{"$f":"+'PR GENERAL'!D8","v":"MONCAYO CALERO FERNANDO"},{"$f":"+'PR GENERAL'!O8","v":284.072}]
[2,"VICECAMPEÓN NACIONAL",{"$f":"+'PR GENERAL'!D9","v":"DÁVALOS CARLOS MANUEL "},{"$f":"+'PR GENERAL'!O9","v":134.744}]
[3,null,{"$f":"+'PR GENERAL'!D10","v":"ESTRADA CARLOS"},{"$f":"+'PR GENERAL'!O10","v":117.184}]
[4,null,{"$f":"+'PR GENERAL'!D11","v":"ESPINOSA JUAN FERNANDO"},{"$f":"+'PR GENERAL'!O11","v":113.12}]
[5,null,{"$f":"+'PR GENERAL'!D12","v":"JULIÁN FLORES"},{"$f":"+'PR GENERAL'!O12","v":97.76}]
[]
["CATEGORÍA PROMOCIONAL JUVENIL"]
[null,null,"JINETE","PUNTAJE"]
[1,"CAMPEÓN NACIONAL",{"$f":"+'PR JUVENIL'!D8","v":"NOROÑA JORDAN"},{"$f":"+'PR JUVENIL'!O8","v":68.8}]
[2,"VICECAMPEÓN NACIONAL",{"$f":"+'PR JUVENIL'!D9","v":"GABRIEL DARQUEA"},{"$f":"+'PR JUVENIL'!O9","v":68.8}]
[3,null,{"$f":"+'PR JUVENIL'!D10","v":"BARBARA ESPINOZA"},{"$f":"+'PR JUVENIL'!O10","v":65.36}]
[4,null,{"$f":"+'PR JUVENIL'!D11","v":"JHON CANDELEJO"},{"$f":"+'PR JUVENIL'!O11","v":32}]
[5,null,{"$f":"+'PR JUVENIL'!D12","v":0},{"$f":"+'PR JUVENIL'!O12","v":0}]
[]
["CATEGORÍA PROMOCIONAL MENORES"]
[null,null,"JINETE","PUNTAJE"]
[1,"CAMPEÓN NACIONAL",{"$f":"+'PR MENORES'!D8","v":"CORREA JUAN MARTIN"},{"$f":"+'PR MENORES'!O8","v":60.8}]
[2,"VICECAMPEÓN NACIONAL",{"$f":"+'PR MENORES'!D9","v":"ESPINOZA NATALIA"},{"$f":"+'PR MENORES'!O9","v":58.176000000000002}]
[3,null,{"$f":"+'PR MENORES'!D10","v":"CASTILLO DAFNE"},{"$f":"+'PR MENORES'!O10","v":32}]
[4]
[5]
[]
["CATEGORÍA PROMOCIONAL INFANTIL"]
[null,null,"JINETE","PUNTAJE"]
[1,"CAMPEÓN NACIONAL",{"$f":"+'PR INFANTIL'!D8","v":"BARAHONA MARIA EMILIA"},{"$f":"+'PR INFANTIL'!O8","v":321.56}]
[2,"VICECAMPEÓN NACIONAL",{"$f":"+'PR INFANTIL'!D9","v":"NOBOA JULIAN "},{"$f":"+'PR INFANTIL'!O9","v":80.640000000000015}]
[3,null,{"$f":"+'PR INFANTIL'!D10","v":"EMILIO DARQUEA "},{"$f":"+'PR INFANTIL'!O10","v":65.44}]
[4,null,{"$f":"+'PR INFANTIL'!D11","v":"CARRERA CAMILA "},{"$f":"+'PR INFANTIL'!O11","v":25.6}]
[5]
[]
["CATEGORÍA PROMOCIONAL ADULTO/MENOR"]
[null,null,"MENOR","PUNTAJE"]
[1,"CAMPEÓN NACIONAL",{"$f":"+'PR ADULTO-MENOR'!C8","v":"CASTILLO DAFNE"},{"$f":"+'PR ADULTO-MENOR'!O8","v":64.64}]
[2,"VICECAMPEÓN NACIONAL",{"$f":"+'PR ADULTO-MENOR'!C9","v":"SERRANO OLIVIA"},{"$f":"+'PR ADULTO-MENOR'!O9","v":63.183999999999997}]
[3,null,{"$f":"+'PR ADULTO-MENOR'!C10","v":"JARA RAFAELA"},{"$f":"+'PR ADULTO-MENOR'!O10","v":32.32}]
[4,null,{"$f":"+'PR ADULTO-MENOR'!C11","v":"MOYA MARTINA"},{"$f":"+'PR ADULTO-MENOR'!O11","v":32}]
[5,null,{"$f":"+'PR ADULTO-MENOR'!C12","v":"CORREA DAVID"},{"$f":"+'PR ADULTO-MENOR'!O12","v":29.231999999999999}]

{"sheet":"CAMPEONES 2018","index":1,"n_rows":57,"n_cols":5,"rows_kept":57,"cut":false,"hidden":false,"merged":[[1,1,1,4],[3,1,3,4],[46,1,46,4],[52,1,52,4],[10,1,10,4],[16,1,16,4],[22,1,22,4],[34,1,34,4],[40,1,40,4],[28,1,28,4]]}
[]
[null,"CAMPEONATO ECUATORIANO DE ENDURANCE"]
[]
[null,"CATEGORÍA ELITE ABIERTA  CHASQUI 3"]
[null,null,null,"JINETE","CABALLO"]
[null,1,"CAMPEÓN NACIONAL","ALMEIDA HECTOR","MARAVILLA"]
[null,2,"VICECAMPEÓN NACIONAL"]
[null,3]
[null,4]
[]
[null,"CATEGORÍA ELITE JUVENIL  CHASQUI 3"]
[null,null,null,"JINETE","CABALLO"]
[null,1,"CAMPEÓN NACIONAL"]
[null,2,"VICECAMPEÓN NACIONAL"]
[null,3]
[]
[null,"CATEGORÍA ELITE ABIERTA  CHASQUI 2"]
[null,null,null,"JINETE","CABALLO"]
[null,1,"CAMPEÓN NACIONAL","JOSE DANIEL ANDRADE","S A DREAMSHA"]
[null,2,"VICECAMPEÓN NACIONAL","ANDRES DARQUEA  ","NABU"]
[null,3,null,"ARMANDO SERRANO  ","MD YALA"]
[]
[null,"CATEGORÍA ELITE JUVENIL  CHASQUI 2"]
[null,null,null,"JINETE","CABALLO"]
[null,1,"CAMPEÓN NACIONAL","BERNARDA GONZALEZ","ASRAEL"]
[null,2,"VICECAMPEÓN NACIONAL","CESAR MORABOWEN MOSQUERA","MANDY CMB "]
[null,3]
[]
[null,"CATEGORÍA ELITE JUVENIL  CHASQUI 2"]
[null,null,null,"JINETE","CABALLO"]
[null,1,"CAMPEÓN NACIONAL","ANDRADE FELIPE ANDRES","MUNIRAH "]
[null,2,"VICECAMPEÓN NACIONAL","BRUNO CARREA ","KARISMA VO"]
[null,3]
[]
[null,"CATEGORÍA  ABIERTA CHASQUI 1"]
[null,null,null,"JINETE","CABALLO"]
[null,1,"CAMPEÓN NACIONAL","CLARA MENDOZA ","ANGOSTURA FRODO"]
[null,2,"VICECAMPEÓN NACIONAL"]
[null,3]
[]
[null,"CATEGORÍA MENORES  CHASQUI 1"]
[null,null,null,"JINETE","CABALLO"]
[null,1,"CAMPEÓN NACIONAL","EMILIO DARQUEA ","ALI"]
[null,2,"VICECAMPEÓN NACIONAL"]
[null,3]
[]
[null,"CATEGORÍA  ABIERTA  CHASQUI 1"]
[null,null,null,"JINETE","CABALLO"]
[null,1,"CAMPEÓN NACIONAL"]
[null,2,"VICECAMPEÓN NACIONAL"]
[null,3]
[]
[null,"CATEGORÍA JUVENIL  CHASQUI 1"]
[null,null,null,"JINETE","CABALLO"]
[null,1,"CAMPEÓN NACIONAL"]
[null,2,"VICECAMPEÓN NACIONAL"]
[null,3]

{"sheet":"SUPER CHASQUI","index":2,"n_rows":115,"n_cols":5,"rows_kept":115,"cut":false,"hidden":true,"merged":[[1,2,1,4],[43,1,43,3],[49,1,49,3],[72,1,72,4],[100,1,100,4],[3,1,3,3],[9,1,9,3],[15,1,15,3],[21,1,21,3],[37,1,37,4]]}
[]
[null,null,"PREMIO SUPER CHASQUI DE ENDURANCE"]
[]
[null,"SUPER CHASQUI 3 JINETES (3000 Km)"]
[null,null,"JINETE"]
[null,1,"ALMEIDA AYALA HECTOR",3732]
[null,2,"ANDRADE JOSE DANIEL",3055]
[null,3]
[]
[null,"SUPER CHASQUI 3 CABALLOS"]
[null,null,"JINETE","CABALLO"]
[null,1]
[null,2]
[null,3]
[]
[null,"SUPER CHASQUI 3 BINOMIOS"]
[null,null,"JINETE","CABALLO"]
[null,1]
[null,2]
[null,3]
[]
[null,"SUPER CHASQUI 2 JINETES (2000 Km)"]
[null,null,"JINETE","KILOMETRAJE"]
[null,null,"RIBADENEIRA SOFIA",2967]
[null,null,"WEEMAELS NATHALIE",2957]
[null,null,"GONZALEZ BERNARDA",2944]
[null,null,"LETORT DUEÑAS BERNARDA",2546]
[null,null,"RECALDE JUAN JOSE",2353]
[null,null,"MORILLO MAURICIO",2232]
[null,null,"MORABOWEN CESAR",2209]
[null,null,"RIBADENEIRA ARTURO",2190]
[null,null,"NEUMANN KARINA",2108]
[null,null,"GOMEZ MICHILENA ALEXANDER",2085]
[null,null,"LOYOLA VINTIMILLA MARIA CLAUDIA",2020]
[]
[]
[]
[null,"SUPER CHASQUI 2 CABALLOS  (2000 Km)"]
[null,null,"JINETE","PROPIETARIO/JINETE","KILOMETRAJE"]
[null,1,"AR FAISAN","ARTURO RIBADENEIRA",2117]
[null,2]
[null,3]
[]
[null,"SUPER CHASQUI 2 BINOMIOS  (2000 Km)"]
[null,null,"JINETE","KILOMETRAJE"]
[null,1]
[null,2]
[null,3]
[]
[null,"SUPER CHASQUI 1 JINETES (1000 Km)"]
[null,null,"JINETE","KILOMETRAJE"]
[null,1,"DARQUEA RAFAELA",1980]
[null,2,"VINTIMILLA SERRANO PABLO XAVIER",1955]
[null,3,"GUARDERAS BARAHONA SEBASTIAN",1943]
[null,4,"NOBOA MAURICIO",1672]
[null,5,"SERRANO VALLEJO FELIPE",1579]
[null,6,"MORENO CORDOVEZ DANIELA",1496]
[null,7,"VELEZ MENA MARIA CONSUELO",1489]
[null,8,"WRAY VINUEZA MATEO",1474]
[null,9,"MONROY BAROJA MARIA FERNANDA",1444]
[null,10,"DARQUEA BERNARDO",1443]
[null,11,"KOPPEL OSWALDO",1408]
[null,12,"CORNEJO BURNEO MANUEL",1298]
[null,13,"CANDO MARIO",1296]
[null,14,"MORILLO SERGIO",1247]
[null,15,"DAVILA GORDILLO JUAN DIEGO",1115]
[null,16,"DARQUEA RICARDO",1084]
[null,17,"LETORT MENA JOSE",1032]
[null,18]
[null,19]
[null,20]
[]
[null,"SUPER CHASQUI 1 CABALLOS  (1000 Km)"]
[null,null,"JINETE","PROPIETARIO/JINETE","KILOMETRAJE"]
[null,1,"ANGOSTURA FRODO","RIBADENEIRA ARTURO",1970]
[null,2,"CENTAURO","HECTOR ALMEIDA",1916]
[null,3,"FHARA CONEJA","DARQUEA BERNARDO",1807]
[null,4,"BOM BOM","JUAN JOSE RECALDE",1676]
[null,5,"CG ALLASKI","WEEMAELS NATHALIE",1604]
[null,6,"MISTERIO","MORILLO MAURICIO",1572]
[null,7,"QUITA PENAS","ILIANA RUIZ",1419]
[null,8,"PATACON","LOYOLA VINTIMILLA MARIA CLAUDIA",1364]
[null,9,"AMARETO","JOSE LETORT",1239]
[null,10,"ASRAEL","BERNARDA GONZALEZ",1222]
[null,11,"KAFIR HA","HECTOR ALMEIDA",1219]
[null,12,"WISKY","MAURICIO NOBOA",1137]
[null,13,"SERENATA CMB","CÉSAR MORABOWEN",1091]
[null,14,"AVENTURERO","HECTOR ALMEIDA",1062]
[null,15,"SHAKIRA","LETORT JOSE IGNACIO",1023]
[null,16,"TRUENO","DARQUEA BERNARDO",1011]
[null,17]
[null,18]
[null,19]
[null,20]
[null,21]
[null,22]
[null,23]
[null,24]
[null,25]
[]
[null,"SUPER CHASQUI 1 BINOMIOS  (1000 Km)"]
[null,null,"JINETE","CABALLO","KILOMETRAJE"]
[null,1,"HECTOR ALMEIDA","CENTAURO",1670]
[null,2,"WEEMAELS NATHALIE","CG ALLASKI",1600]
[null,3,"MORILLO MAURICIO","MISTERIO",1458]
[null,4,"DARQUEA BERNARDO","FHARA CONEJA",1362]
[null,5,"RIBADENEIRA SOFIA","AR FAISAN",1261]
[null,6,"LOYOLA VINTIMILLA MARIA CLAUDIA","PATACON",1115]
[null,7]
[null,8]
[null,9]
[null,10]
[null,11]
[null,12]
[null,13]

{"sheet":"EQUIPOS","index":3,"n_rows":35,"n_cols":41,"rows_kept":35,"cut":false,"hidden":false,"merged":[[1,1,1,20],[6,4,6,9],[4,1,4,9],[4,10,4,20],[5,10,5,20],[2,1,2,20]]}
[]
[null,"                                                      PUNTAJE  ACUMULADO"]
[null,"                                                                   EQUIPOS"]
[]
[null,"EQUIPOS",null,null,null,null,null,null,null,null,"PUNTAJES"]
[null,null,null,null,null,null,null,null,null,null,2018]
[null,null,"EQUIPO","CAPITAN","               JINETES",null,null,null,null,null,"II CHONE","III CHONE","V CHONE","VI CHONE","VIII CHONE","XII SÁBADO","XII DOMINGO","X CHONE",null,null,"ACUMULADO"]
[null,1,"SEGUROS EQUINOCCIAL","BERNARDO DARQUEA","MARÍA JOSÉ HERNANDEZ","RICARDO DARQUEA","EMILIO DARQUEA","JUAN JOSÉ RECALDE","GABRIEL DARQUEA","ANDRES DARQUEA",313.44,321.52,null,null,null,null,402.2,null,null,null,{"$f":"SUM(K8:T8)","v":1037.1600000000001}]
[null,2,"SELECT","ARMANDO SERRANO","MANUELA JARAMILLO","JOSÉ DANIEL ANDRADE ","JOSE LETORT MENA","ARMANDO SERRANO","FELIPE ANDRÉS ANDRADE ","BERNARDA LETORT",553.79999999999995,null,null,null,null,null,464,null,null,null,1017.8]
[null,3,"CACHAFAZ ENDURANCE ","ARTURO RIBADENEIRA","MARIA EMILIA BARAHONA","KLARIZA MENDOZA","MARIA CECILIA ALZAMORA","CARLOS DAVALOS","JUAN CARLOS ANDRADE","ARTURO RIBADENEIRA",null,null,null,null,251.2,278.77,285.39999999999998,null,null,null,815.37,null,null,null,null,null,null,null,null,null,null,null,null,null,null,null,null,null,null,{"$f":"+$U$8-U9","v":19.360000000000127},{"$f":"VLOOKUP(B10,#REF!,3,FALSE)","v":{"$error":"#REF!"}}]
[null,4,"HACIENDA HATO VERDE","CESAR MORABOWEN","MORABOWEN AGUIRRE CESAR ","MORABOWEN MOSQUERA CESAR","FRANCISCO FALCONÍ ","MARIA ISABEL CALERO","JORGE EDUARDO DAVALOS","SANDRO PEREZ LEON",null,424.44000000000005,null,null,null,null,337.44,null,null,null,761.88000000000011]
[null,5,"AL GALOPE","HÉCTOR ALMEIDA","PABLO VINTIMILLA","BERNARDA GONZÁLEZ","MIGUEL ANGEL MOYA","DANILO MONCAYO","ALEXANDER GÓMEZ","HÉCTOR ALMEIDA",null,null,null,630.95000000000005,null,null,null,null,null,null,630.95000000000005]
[null,6,"WM ENDURANCE TEAM ","PATRICK MORMAL","NATHALIE WEEMAELS","LUIS RUBIO","PATRICIA GUERRA","JUAN MARTIN CORREA ","JUAN PABLO AGUAYO","FELIPE PORTILLA",397.4,151.04,null,null,null,null,null,null,null,null,548.43999999999994]
[null,7,null,null,null,null,null,null,null,null,null,null,null,null,null,null,null,null,null,null,{"$f":"SUM(K14:T14)","v":0}]
[null,8,null,null,null,null,null,null,null,null,null,null,null,null,null,null,null,null,null,null,0]
[null,9,null,null,null,null,null,null,null,null,null,null,null,null,null,null,null,null,null,null,{"$f":"SUM(K16:T16)","v":0}]
[null,10,null,null,null,null,null,null,null,null,null,null,null,null,null,null,null,null,null,null,0]
[null,11,null,null,null,null,null,null,null,null,null,null,null,null,null,null,null,null,null,null,0]
[null,12,null,null,null,null,null,null,null,null,null,null,null,null,null,null,null,null,null,null,0]
[null,13,null,null,null,null,null,null,null,null,null,null,null,null,null,null,null,null,null,null,0]
[null,14,null,null,null,null,null,null,null,null,null,null,null,null,null,null,null,null,null,null,0]
[null,15,null,null,null,null,null,null,null,null,null,null,null,null,null,null,null,null,null,null,0]
[null,16,null,null,null,null,null,null,null,null,null,null,null,null,null,null,null,null,null,null,0]
[]
[]
[]
[]
[]
[]
[]
[]
[]
[]
[]
[null,null,null,null,null,null,null,null,null,null,null,null,null,null,null,"º"]

{"sheet":"ELITE ABIERTA","index":4,"n_rows":55,"n_cols":17,"rows_kept":55,"cut":false,"hidden":false,"merged":[[5,4,5,16],[4,1,4,3],[1,1,1,16],[2,1,2,16]]}
[]
[null,"PUNTAJE  ACUMULADO"]
[null,"CATEGORÍA ABIERTA ELITE"]
[]
[null,"ELITE ABIERTA",null,null,"PUNTAJES"]
[null,null,null,null,2018]
[null,null,"CODIGO","JINETE","I CHONE","II CHONE","III CHONE","IV CHONE","V CHONE","VI CHONE","VII CHONE","VIII CHONE","IX CHONE","X CHONE","XI CHONE","XII CHONE","ACUMULADO"]
[null,1,"A045","ALMEIDA AYALA HECTOR",null,324,162,null,null,{"$f":"80.5*2","v":161},136,null,null,null,136,241.8,{"$f":"SUM(E8:P8)","v":1160.8}]
[null,2,"A035","VINTIMILLA PABLO",169.6,233.7,137.69999999999999,null,null,228.95,null,null,null,null,144,128,1041.95]
[null,3,"A248","ANDRADE JOSE DANIEL",135.68,246,null,null,null,null,160,160,null,null,160,160,1021.6800000000001]
[null,4,"A250","WEEMAELS NATHALIE",null,307.8,null,null,68.8,null,null,null,null,null,null,{"$f":"155.42+136","v":291.41999999999996},668.02]
[null,5,"A192","LOZADA JOSE ARMANDO",null,153.9,null,128.16,null,null,128,null,null,null,null,163.6,573.66]
[null,6,"A097","MORABOWEN CESAR",null,null,145.80000000000001,160.19999999999999,null,null,null,null,null,null,{"$f":"0.75*2*80","v":120},{"$f":"160*0.7","v":112},538]
[null,7,"J015","DARQUEA ANDRÉS",null,null,123.12,null,null,90.16,null,152,null,null,null,152,517.28]
[null,8,"A309","HERNANDEZ MARÍA JOSÉ ",null,123.12,129.6,null,null,152.94999999999999,null,null,null,null,null,null,405.66999999999996]
[null,9,"A057","DÁVILA JUAN DIEGO  ",null,null,null,null,null,241,null,null,null,null,{"$f":"0.95*80*2","v":152},null,393]
[null,10,"A055","SERRANO ARMANDO",null,162,51.6,null,null,null,null,null,null,null,null,144,357.6]
[null,11,"A060","VELEZ MARIA CONSUELO",67.84,null,null,null,null,null,152,null,null,null,null,120,339.84000000000003]
[null,12,"J034","MALO ANDREA",161.11999999999998,null,null,null,null,53.760000000000005,121.6,null,null,null,null,null,336.48]
[null,13,"A033","LETORT JOSE",null,145.80000000000001,null,null,null,null,null,null,null,null,null,115.2,261]
[null,14,"A171","LOYOLA MARIA CLAUDIA",84.8,null,null,null,null,null,144,null,null,null,null,null,228.8]
[null,15,"A058","ARTURO RIBADENEIRA",null,null,null,null,null,65.36,null,136,null,null,null,null,201.36]
[null,16,"A067","CANDO MARIO ",null,null,null,null,null,67.2,null,null,null,null,null,130.88,198.07999999999998]
[null,17,"A353","VANDEWALLE FAYE",null,null,null,null,null,null,null,null,null,null,null,{"$f":"58.896+128","v":186.89600000000002},186.89600000000002]
[null,18,"A214","MOYA MIGUEL ANGEL",null,null,153.9,null,null,null,null,null,null,null,null,null,153.9]
[null,19,"A035","FELIPE PORTILLA",null,null,null,null,null,null,null,128,null,null,null,null,128]
[null,20,"A351","CLARK JUSTIN",null,null,null,null,null,103.04000000000002,null,null,null,null,null,null,103.04000000000002]
[null,21,"J011","LETORT BERNARDA",null,null,null,null,null,96.600000000000009,null,null,null,null,null,null,96.600000000000009]
[null,22,null,null,null,null,null,null,null,null,null,null,null,null,null,null,{"$f":"SUM(E29:P29)","v":0}]
[null,23,null,null,null,null,null,null,null,null,null,null,null,null,null,null,0]
[null,24,null,null,null,null,null,null,null,null,null,null,null,null,null,null,0]
[null,25,null,null,null,null,null,null,null,null,null,null,null,null,null,null,0]
[null,26,null,null,null,null,null,null,null,null,null,null,null,null,null,null,0]
[null,27,null,null,null,null,null,null,null,null,null,null,null,null,null,null,0]
[null,28,null,null,null,null,null,null,null,null,null,null,null,null,null,null,0]
[]
[null,null,null,null,null,null,null,null,null,null,null,{"$f":"IF(J37>=60,\"CLASIFICADO A 60 Km LIBRE y 80 Km NOVICIO\",IF(J37>=40,\"CLASIFICADO A 40 Km LIBRE y 60 Km NOVICIO\",\"\"))","v":""}]
[]
[]
[]
[]
[]
[]
[]
[]
[]
[]
[]
[]
[]
[]
[]
[]
[]
[null,null,null,null,null,null,null,null,null,null,null,{"$f":"IF(J55>=60,\"CLASIFICADO A 60 Km LIBRE y 80 Km NOVICIO\",IF(J55>=40,\"CLASIFICADO A 40 Km LIBRE y 60 Km NOVICIO\",\"\"))","v":""}]

{"sheet":"ELITE JUVENIL","index":5,"n_rows":39,"n_cols":17,"rows_kept":39,"cut":false,"hidden":false,"merged":[[5,4,5,16],[4,1,4,3],[4,4,4,16],[1,1,1,16],[2,1,2,16]]}
[]
[null,"PUNTAJE  ACUMULADO"]
[null,"CATEGORÍA JUVENIL ELITE"]
[]
[null,"ELITE JUVENIL",null,null,"PUNTAJES"]
[null,null,null,null,2018]
[null,null,"CODIGO","JINETE","I CHONE","II CHONE","III CHONE","IV CHONE","V CHONE","VI CHONE","VII CHONE","VIII CHONE","IX CHONE","X CHONE","XI CHONE","XII CHONE","ACUMULADO"]
[null,1,"J063","GONZALEZ BERNARDA",169.6,null,null,null,null,241,160,null,null,null,160,160,{"$f":"SUM(E8:P8)","v":890.6}]
[null,2,"J096","LOYOLA TEODORO ANDRES",127.19999999999999,null,null,128,null,null,152,null,null,null,120,null,527.20000000000005]
[null,3,"J208","MASAPANTA LUIS",null,129.6,65.36,null,null,null,161,null,null,null,null,62.167999999999999,418.12799999999999]
[null,4,"M022","MORABOWEN MOSQUERA CESAR",null,null,162,null,null,null,null,null,null,null,null,152,314]
[null,5,"J230","MASAPANTA KEVIN",null,null,null,null,null,128.80000000000001,null,null,null,null,null,null,128.80000000000001]
[null,6,"J100","HURTADO HECTOR",67.84,null,null,60.800000000000004,null,null,null,null,null,null,null,null,128.64000000000001]
[null,7,"J019","DARQUEA RICARDO",null,123.12,null,null,null,null,null,null,null,null,null,null,123.12]
[null,8,null,null,null,null,null,null,null,null,null,null,null,null,null,null,0]
[null,9,null,null,null,null,null,null,null,null,null,null,null,null,null,null,{"$f":"SUM(E16:P16)","v":0}]
[null,10,null,null,null,null,null,null,null,null,null,null,null,null,null,null,0]
[null,11,null,null,null,null,null,null,null,null,null,null,null,null,null,null,0]
[null,12,null,null,null,null,null,null,null,null,null,null,null,null,null,null,0]
[null,13,null,null,null,null,null,null,null,null,null,null,null,null,null,null,0]
[null,14,null,null,null,null,null,null,null,null,null,null,null,null,null,null,0]
[null,15,null,null,null,null,null,null,null,null,null,null,null,null,null,null,0]
[null,16,null,null,null,null,null,null,null,null,null,null,null,null,null,null,{"$f":"SUM(E23:P23)","v":0}]
[null,17,null,null,null,null,null,null,null,null,null,null,null,null,null,null,{"$f":"SUM(E24:P24)","v":0}]
[null,18,null,null,null,null,null,null,null,null,null,null,null,null,null,null,{"$f":"SUM(E25:P25)","v":0}]
[null,19,null,null,null,null,null,null,null,null,null,null,null,null,null,null,{"$f":"SUM(E26:P26)","v":0}]
[]
[null,null,null,null,null,null,null,null,null,null,null,{"$f":"IF(J28>=60,\"CLASIFICADO A 60 Km LIBRE y 80 Km NOVICIO\",IF(J28>=40,\"CLASIFICADO A 40 Km LIBRE y 60 Km NOVICIO\",\"\"))","v":""}]
[]
[]
[]
[]
[]
[]
[]
[]
[]
[]
[null,null,null,null,null,null,null,null,null,null,null,{"$f":"IF(J39>=60,\"CLASIFICADO A 60 Km LIBRE y 80 Km NOVICIO\",IF(J39>=40,\"CLASIFICADO A 40 Km LIBRE y 60 Km NOVICIO\",\"\"))","v":""}]

{"sheet":"ELITE MENORES","index":6,"n_rows":39,"n_cols":15,"rows_kept":39,"cut":false,"hidden":true,"merged":[[1,1,1,14],[2,1,2,14],[4,1,4,3],[4,4,4,14],[5,4,5,14]]}
[]
[null,"PUNTAJE  ACUMULADO"]
[null,"CATEGORÍA MENORES ELITE"]
[]
[null,"ELITE MENORES",null,null,"PUNTAJES"]
[null,null,null,null,2017]
[null,null,"CODIGO","JINETE","I CHONE","II CHONE","III CHONE","IV CHONE","V CHONE","VI CHONE","VII CHONE","VIII CHONE","IX CHONE","X CHONE","ACUMULADO"]
[null,1,null,null,null,null,null,null,null,null,null,null,null,null,{"$f":"SUM(E8:N8)","v":0}]
[null,2,null,null,null,null,null,null,null,null,null,null,null,null,0]
[null,3,null,null,null,null,null,null,null,null,null,null,null,null,0]
[null,4,null,null,null,null,null,null,null,null,null,null,null,null,0]
[null,5,null,null,null,null,null,null,null,null,null,null,null,null,0]
[null,6,null,null,null,null,null,null,null,null,null,null,null,null,0]
[null,7,null,null,null,null,null,null,null,null,null,null,null,null,0]
[null,8,null,null,null,null,null,null,null,null,null,null,null,null,0]
[null,9,null,null,null,null,null,null,null,null,null,null,null,null,0]
[null,10,null,null,null,null,null,null,null,null,null,null,null,null,0]
[null,11,null,null,null,null,null,null,null,null,null,null,null,null,0]
[null,12,null,null,null,null,null,null,null,null,null,null,null,null,0]
[null,13,null,null,null,null,null,null,null,null,null,null,null,null,0]
[null,14,null,null,null,null,null,null,null,null,null,null,null,null,0]
[null,15,null,null,null,null,null,null,null,null,null,null,null,null,{"$f":"SUM(E22:N22)","v":0}]
[null,16,null,null,null,null,null,null,null,null,null,null,null,null,{"$f":"SUM(E23:N23)","v":0}]
[null,17,null,null,null,null,null,null,null,null,null,null,null,null,{"$f":"SUM(E24:N24)","v":0}]
[null,18,null,null,null,null,null,null,null,null,null,null,null,null,{"$f":"SUM(E25:N25)","v":0}]
[null,19,null,null,null,null,null,null,null,null,null,null,null,null,{"$f":"SUM(E26:N26)","v":0}]
[]
[null,null,null,null,null,null,null,null,null,null,null,{"$f":"IF(J28>=60,\"CLASIFICADO A 60 Km LIBRE y 80 Km NOVICIO\",IF(J28>=40,\"CLASIFICADO A 40 Km LIBRE y 60 Km NOVICIO\",\"\"))","v":""}]
[]
[]
[]
[]
[]
[]
[]
[]
[]
[]
[null,null,null,null,null,null,null,null,null,null,null,{"$f":"IF(J39>=60,\"CLASIFICADO A 60 Km LIBRE y 80 Km NOVICIO\",IF(J39>=40,\"CLASIFICADO A 40 Km LIBRE y 60 Km NOVICIO\",\"\"))","v":""}]

{"sheet":"ELITE CABALLOS","index":7,"n_rows":83,"n_cols":18,"rows_kept":83,"cut":false,"hidden":false,"merged":[[5,5,5,17],[4,5,4,17],[1,1,1,17],[2,1,2,17],[4,1,4,4]]}
[]
[null,"PUNTAJE  ACUMULADO"]
[null,"CATEGORÍA CABALLOS ELITE"]
[]
[null,"ELITE CABALLOS",null,null,null,"PUNTAJES"]
[null,null,null,null,null,2018]
[null,null,"CODIGO","CABALLO","DUEÑO/JINETE","I CHONE","II CHONE","III CHONE","IV CHONE","V CHONE","VI CHONE","VII CHONE","VIII CHONE","IX CHONE","X CHONE","XI CHONE","XII CHONE","ACUMULADO"]
[null,1,"C403","MARAVILLA","HECTOR ALMEIDA AYALA",null,129.6,162,null,null,{"$f":"80.5*2","v":161},null,null,null,null,null,241.8,{"$f":"SUM(H8:Q8)","v":564.79999999999995}]
[null,2,"C417","MANDY CMB","MORABOWEN CESAR",null,null,162,160.19999999999999,null,null,null,null,null,null,120,152,{"$f":"SUM(F9:Q9)-P9","v":474.20000000000005}]
[null,3,"C401","SUMAYA BD","MARIA JOSE HERNANDEZ",null,123.12,129.6,null,null,{"$f":"161*0.95","v":152.94999999999999},null,152,null,null,null,null,{"$f":"SUM(H10:Q10)","v":434.54999999999995}]
[null,4,"C512","SA DREAMSHA","FELIPE ANDRADE",135.68,null,null,null,null,null,128,null,null,null,null,160,{"$f":"SUM(F11:Q11)","v":423.68}]
[null,5,"C278","JUGUETE","LOYOLA TEODORO ANDRES",127.19999999999999,null,null,128,null,null,152,null,null,null,120,null,{"$f":"SUM(F12:O12)","v":407.2}]
[null,6,"C072","QUITA PENAS","FELIPE ANDRADE",null,246,null,null,null,null,160,null,null,null,null,null,{"$f":"SUM(F13:Q13)","v":406}]
[null,7,"C252","BIANCA","VINTIMILLA PABLO",169.6,233.7,null,null,null,null,null,null,null,null,null,null,403.29999999999995]
[null,8,"C382","POLACO","BERNARDO GONZALEZ",null,null,null,null,null,241,null,null,null,null,160,null,401]
[null,9,"C238","CALEÑA CMB","MORABOWEN CESAR",null,null,129.6,128.16,null,null,136,null,null,null,null,null,393.76]
[null,10,"C491","SOLOANDA","FELIPE ANDRADE",null,null,null,null,null,241,null,null,null,null,152,null,393]
[null,11,"C542","PV GUAPA","PABLO VINTIMILLA",null,null,null,128.16,null,null,128,null,null,null,null,128,384.15999999999997]
[null,12,"C419","GH PSHYRO","PABLO VINTIMILLA",null,153.9,null,null,null,228.95,null,null,null,null,null,null,382.85]
[null,13,"C004","TEQUILA","BERNARDO GONZALEZ",169.6,null,null,null,null,null,160,null,null,null,null,null,329.6]
[null,14,"C115","AVENTURERO","HECTOR ALMEIDA AYALA",null,324,null,null,null,null,null,null,null,null,null,null,324]
[null,15,"C282","MAGIC MENES","FELIPE ANDRADE",67.84,129.6,null,null,null,122.36,null,null,null,null,null,null,319.8]
[null,16,"C093","CG ALLASKI","WEEMAELS NATHALIE",null,307.8,null,null,null,null,null,null,null,null,null,null,307.8]
[null,17,"C407","SALMA","BENITO JARAMILLO",null,129.6,null,null,null,161,null,null,null,null,null,null,290.60000000000002]
[null,18,"C376","NABU","BERNARDO DARQUEA",null,123.12,null,null,null,null,null,null,null,null,null,152,275.12]
[null,19,"C096","AR FAISAN","ARTURO RIBADENEIRA",null,67.2,68.8,null,null,122.36,null,null,null,null,null,null,258.36]
[null,20,"C143","ALI","BERNARDO DARQUEA",null,67.2,68.8,null,null,null,null,null,null,null,null,122.19999999999999,258.2]
[null,21,"C229","BULERIA CMB","MORABOWEN CESAR",null,null,145.80000000000001,null,null,null,null,null,null,null,null,112,257.8]
[null,22,"C400","ANGOSTURA FRODO","ARTURO RIBADENEIRA",null,null,null,null,null,63.84,null,64,null,null,null,122.19999999999999,250.04]
[null,23,"C197","PATACON","LOYOLA CLAUDIA MARIA",84.8,null,null,null,null,null,144,null,null,null,null,null,228.8]
[null,24,"C261","GRINGO","BERNARDO DARQUEA",null,null,123.12,null,null,90.16,null,null,null,null,null,null,213.28]
[null,25,"C016","BOX BRUMA","NATHALIE WEEMAELS",null,null,null,null,68.8,null,null,null,null,null,null,136,204.8]
[null,26,"C396","SC SHADID","PABLO VINTIMILLA",null,null,null,null,null,null,null,null,null,null,null,163.6,163.6]
[null,27,"C502","MONARCH","LOYOLA MARIA CLAUDIA",null,162,null,null,null,null,null,null,null,null,null,null,162]
[null,28,"C441","SANTOO","VELEZ MENA MARIA CONSUELO",161.11999999999998,null,null,null,null,null,null,null,null,null,null,null,161.11999999999998]
[null,29,"C232","ASRAEL","BERNARDO GONZALEZ",null,null,null,null,null,null,null,null,null,null,null,160,160]
[null,30,"C413","RO EVITA","NATHALIE WEEMAELS",null,null,null,null,null,null,null,null,null,null,null,155.41999999999999,155.41999999999999]
[null,31,"C165","DIAMANTE","MIGUEL MOYA",null,null,153.9,null,null,null,null,null,null,null,null,null,153.9]
[null,32,"C209","AISHA","VELEZ MENA MARIA CONSUELO",null,null,null,null,null,null,152,null,null,null,null,null,152]
[null,33,"C518","KARISMA VO","BRUNO CARRERA",null,null,null,null,null,null,null,null,null,null,null,152,152]
[null,34,"C046","AMARETO","LETORT BERNARDA",null,145.80000000000001,null,null,null,null,null,null,null,null,null,null,145.80000000000001]
[null,35,"C587","TTT TRICIA GAL","PABLO VINTIMILLA",null,null,null,null,null,null,null,null,null,null,144,null,144]
[null,36,"C357","MD YALA","ARMANDO SERRANO",null,null,null,null,null,null,null,null,null,null,null,144,144]
[null,37,"C175","CLAW","ARTURO RIBADENEIRA",null,null,null,null,null,null,null,136,null,null,null,null,136]
[null,38,"C097","CENTAURO","JAIME BURBANO",null,null,null,null,null,null,null,null,null,null,136,null,136]
[null,39,"C204","AR ALBATSYN","FELIPE PORTILLA",null,null,null,null,null,null,null,128,null,null,null,null,128]
[null,40,"C200","MULATA","GALO RECALDE",null,null,null,null,null,115.92000000000002,null,null,null,null,null,null,115.92000000000002]
[null,41,null,null,null,null,null,null,null,null,null,null,null,null,null,null,null,{"$f":"SUM(F48:Q48)","v":0}]
[null,42,null,null,null,null,null,null,null,null,null,null,null,null,null,null,null,0]
[null,43,null,null,null,null,null,null,null,null,null,null,null,null,null,null,null,0]
[null,44,null,null,null,null,null,null,null,null,null,null,null,null,null,null,null,0]
[null,45,null,null,null,null,null,null,null,null,null,null,null,null,null,null,null,{"$f":"SUM(F52:Q52)","v":0}]
[null,46,null,null,null,null,null,null,null,null,null,null,null,null,null,null,null,0]
[null,47,null,null,null,null,null,null,null,null,null,null,null,null,null,null,null,0]
[null,48,null,null,null,null,null,null,null,null,null,null,null,null,null,null,null,0]
[null,49,null,null,null,null,null,null,null,null,null,null,null,null,null,null,null,0]
[null,50,null,null,null,null,null,null,null,null,null,null,null,null,null,null,null,0]
[null,51,null,null,null,null,null,null,null,null,null,null,null,null,null,null,null,0]
[null,52,null,null,null,null,null,null,null,null,null,null,null,null,null,null,null,0]
[null,53,null,null,null,null,null,null,null,null,null,null,null,null,null,null,null,0]
[null,54,null,null,null,null,null,null,null,null,null,null,null,null,null,null,null,{"$f":"SUM(F61:Q61)","v":0}]
[null,55,null,null,null,null,null,null,null,null,null,null,null,null,null,null,null,{"$f":"SUM(F62:Q62)","v":0}]
[null,56,null,null,null,null,null,null,null,null,null,null,null,null,null,null,null,{"$f":"SUM(F63:Q63)","v":0}]
[]
[]
[]
[]
[]
[]
[]
[]
[]
[]
[]
[]
[]
[]
[]
[]
[]
[]
[]
[null,null,null,null,null,null,null,null,null,null,null,null,{"$f":"IF(K83>=60,\"CLASIFICADO A 60 Km LIBRE y 80 Km NOVICIO\",IF(K83>=40,\"CLASIFICADO A 40 Km LIBRE y 60 Km NOVICIO\",\"\"))","v":""}]

{"sheet":"AMATEUR ABIERTA","index":8,"n_rows":94,"n_cols":17,"rows_kept":94,"cut":false,"hidden":false,"merged":[[5,4,5,16],[4,1,4,3],[4,4,4,16],[1,1,1,16],[2,1,2,16]]}
[]
[null,"PUNTAJE  ACUMULADO"]
[null,"CATEGORÍA ABIERTA NOVICIOS"]
[]
[null,"NOVICIOS ABIERTA",null,null,"PUNTAJES"]
[null,null,null,null,2018]
[null,null,"CODIGO","JINETE","I CHONE","II CHONE","III CHONE","IV CHONE","V CHONE","VI CHONE","VII CHONE","VIII CHONE","IX CHONE","X CHONE","XI CHONE","XII CHONE","ACUMULADO"]
[null,1,"A178","ANDRADE JUAN CARLOS",null,67.2,68.8,null,null,122.36,null,null,null,null,{"$f":"0.8*2*80","v":128},{"$f":"147.24+65.44","v":212.68},{"$f":"SUM(E8:P8)","v":599.04}]
[null,2,"A251","GONZALEZ JERVES XIMENA",80.559999999999988,null,null,null,null,128.80000000000001,115.2,144,null,null,{"$f":"0.8*2*80","v":128},null,596.55999999999995]
[null,3,"A348","MENDOZA KLARIZA",null,null,null,null,null,63.84,null,64,null,null,null,122.2,250.04000000000002]
[null,4,"A064","DIEGO CASTILLO ",null,63.84,61.920000000000009,null,null,null,null,null,null,null,null,121.6,247.36]
[null,5,"A313","AGUAYO JUAN PABLO",null,null,65.36,64,null,109.48,null,null,null,null,null,null,238.84000000000003]
[null,6,"J201","CALERO MARÍA ISABEL",null,null,116.64000000000001,121.75199999999998,null,null,null,null,null,null,null,null,238.392]
[null,7,"A135","DONOSO SEBASTIAN",null,null,null,57.6,null,47.04,108.80000000000001,null,null,null,null,null,213.44]
[null,8,"A030","MONCAYO  DANILO",null,null,55.04,null,null,115.92000000000002,null,null,null,null,null,null,170.96]
[null,9,"A125","FRANCISCO FALCONÍ  ",null,null,null,null,null,null,null,null,null,null,null,139.06,139.06]
[null,10,"A236","TATE JUNE ",null,129.6,null,null,null,null,null,null,null,null,null,null,129.6]
[null,11,"A050","ALZAMORA MARÍA CECILIA ",null,null,null,null,null,null,null,57.6,null,null,null,65.44,123.03999999999999]
[null,12,"A012","ALMEIDA PARDO HÉCTOR",null,null,null,null,null,null,null,60.8,null,null,null,62.167999999999999,122.96799999999999]
[null,13,"A 501","TUTIVEN  LUIS ",null,null,null,null,61.920000000000009,43.680000000000007,null,null,null,null,null,null,105.60000000000002]
[null,14,"A142","GONZALEZ SEBASTIAN",null,null,null,60.800000000000004,null,null,null,null,null,null,null,null,60.800000000000004]
[null,15,"A333","BARBERIS NICOLE",null,null,null,null,null,60.480000000000011,null,null,null,null,null,null,60.480000000000011]
[null,16,"A315","RUBIO  LUIS",null,null,58.48,null,null,null,null,null,null,null,null,null,58.48]
[null,17,"J220","MONCAYO MONCAYO FERNANDO ",null,null,null,null,null,57.12,null,null,null,null,null,null,57.12]
[null,18,"A355","GARCÍA MANUEL ",null,null,null,null,null,null,null,54.4,null,null,null,null,54.4]
[null,19,"A021","ALVEAR JUAN CARLOS ",null,null,null,null,null,50.400000000000006,null,null,null,null,null,null,50.400000000000006]
[null,20,"A326","ACHANCE GUIDO OSWALDO",null,null,48.16,null,null,null,null,null,null,null,null,null,48.16]
[null,21,null,null,null,null,null,null,null,null,null,null,null,null,null,null,{"$f":"SUM(E28:P28)","v":0}]
[null,22,null,null,null,null,null,null,null,null,null,null,null,null,null,null,{"$f":"SUM(E29:P29)","v":0}]
[null,23,null,null,null,null,null,null,null,null,null,null,null,null,null,null,0]
[null,24,null,null,null,null,null,null,null,null,null,null,null,null,null,null,0]
[null,25,null,null,null,null,null,null,null,null,null,null,null,null,null,null,0]
[null,26,null,null,null,null,null,null,null,null,null,null,null,null,null,null,0]
[null,27,null,null,null,null,null,null,null,null,null,null,null,null,null,null,0]
[null,28,null,null,null,null,null,null,null,null,null,null,null,null,null,null,0]
[null,29,null,null,null,null,null,null,null,null,null,null,null,null,null,null,0]
[null,30,null,null,null,null,null,null,null,null,null,null,null,null,null,null,0]
[null,31,null,null,null,null,null,null,null,null,null,null,null,null,null,null,0]
[null,32,null,null,null,null,null,null,null,null,null,null,null,null,null,null,0]
[null,33,null,null,null,null,null,null,null,null,null,null,null,null,null,null,{"$f":"SUM(E40:P40)","v":0}]
[null,34,null,null,null,null,null,null,null,null,null,null,null,null,null,null,0]
[null,35,null,null,null,null,null,null,null,null,null,null,null,null,null,null,0]
[null,36,null,null,null,null,null,null,null,null,null,null,null,null,null,null,0]
[null,37,null,null,null,null,null,null,null,null,null,null,null,null,null,null,0]
[null,38,null,null,null,null,null,null,null,null,null,null,null,null,null,null,0]
[null,39,null,null,null,null,null,null,null,null,null,null,null,null,null,null,0]
[null,40,null,null,null,null,null,null,null,null,null,null,null,null,null,null,0]
[null,41,null,null,null,null,null,null,null,null,null,null,null,null,null,null,0]
[null,42,null,null,null,null,null,null,null,null,null,null,null,null,null,null,0]
[null,43,null,null,null,null,null,null,null,null,null,null,null,null,null,null,{"$f":"SUM(E50:P50)","v":0}]
[null,44,null,null,null,null,null,null,null,null,null,null,null,null,null,null,{"$f":"SUM(E51:P51)","v":0}]
[null,45,null,null,null,null,null,null,null,null,null,null,null,null,null,null,0]
[null,46,null,null,null,null,null,null,null,null,null,null,null,null,null,null,0]
[null,47,null,null,null,null,null,null,null,null,null,null,null,null,null,null,0]
[null,48,null,null,null,null,null,null,null,null,null,null,null,null,null,null,0]
[null,49,null,null,null,null,null,null,null,null,null,null,null,null,null,null,0]
[null,50,null,null,null,null,null,null,null,null,null,null,null,null,null,null,0]
[null,51,null,null,null,null,null,null,null,null,null,null,null,null,null,null,0]
[null,52,null,null,null,null,null,null,null,null,null,null,null,null,null,null,0]
[null,53,null,null,null,null,null,null,null,null,null,null,null,null,null,null,0]
[null,54,null,null,null,null,null,null,null,null,null,null,null,null,null,null,0]
[null,55,null,null,null,null,null,null,null,null,null,null,null,null,null,null,0]
[null,56,null,null,null,null,null,null,null,null,null,null,null,null,null,null,0]
[null,57,null,null,null,null,null,null,null,null,null,null,null,null,null,null,0]
[null,58,null,null,null,null,null,null,null,null,null,null,null,null,null,null,0]
[null,59,null,null,null,null,null,null,null,null,null,null,null,null,null,null,0]
[null,60,null,null,null,null,null,null,null,null,null,null,null,null,null,null,0]
[null,61,null,null,null,null,null,null,null,null,null,null,null,null,null,null,0]
[null,62,null,null,null,null,null,null,null,null,null,null,null,null,null,null,0]
[null,63,null,null,null,null,null,null,null,null,null,null,null,null,null,null,0]
[null,64,null,null,null,null,null,null,null,null,null,null,null,null,null,null,0]
[null,65,null,null,null,null,null,null,null,null,null,null,null,null,null,null,0]
[null,66,null,null,null,null,null,null,null,null,null,null,null,null,null,null,0]
[null,67,null,null,null,null,null,null,null,null,null,null,null,null,null,null,0]
[]
[]
[]
[]
[]
[]
[]
[]
[]
[]
[]
[]
[]
[]
[]
[]
[]
[]
[]
[null,null,null,null,null,null,null,null,null,null,null,{"$f":"IF(J94>=60,\"CLASIFICADO A 60 Km LIBRE y 80 Km NOVICIO\",IF(J94>=40,\"CLASIFICADO A 40 Km LIBRE y 60 Km NOVICIO\",\"\"))","v":""}]

{"sheet":"AMATEUR JUVENIL","index":9,"n_rows":83,"n_cols":17,"rows_kept":83,"cut":false,"hidden":false,"merged":[[5,4,5,16],[4,1,4,3],[4,4,4,16],[1,1,1,16],[2,1,2,16]]}
[]
[null,"PUNTAJE  ACUMULADO"]
[null,"CATEGORÍA JUVENIL NOVICIOS"]
[]
[null,"NOVICIOS JUVENIL",null,null,"PUNTAJES"]
[null,null,null,null,2018]
[null,null,"CODIGO","JINETE","I CHONE","II CHONE","III CHONE","IV CHONE","V CHONE","VI CHONE","VII CHONE","VIII CHONE","IX CHONE","X CHONE","XI CHONE","XII CHONE","ACUMULADO"]
[null,1,"J137","DAVALOS JORGE EDUARDO",null,null,129.6,128.16,null,null,null,null,null,null,60.8,65.44,{"$f":"SUM(E8:P8)","v":384}]
[null,2,"J136","SALTOS JUAN XAVIER ",null,null,null,64,null,67.2,115.2,null,null,null,{"$f":"0.8*160","v":128},null,374.4]
[null,3,"J109","LOYOLA LEONARDO",null,null,null,null,null,null,64,64,null,null,64,130.88,322.88]
[null,4,"J232","TORRES GIORDANO",null,null,null,null,null,63.84,108.80000000000001,null,null,null,121.6,null,294.24]
[null,5,"J098","MORENO PAULINA",null,null,null,54.400000000000006,null,60.480000000000011,121.60000000000001,null,null,null,null,null,236.48000000000002]
[null,6,"J231 ","SALTOS ANA PAULA",null,null,null,null,null,57.12,60.800000000000004,null,null,null,115.2,null,233.12]
[null,7,"I019","CASTILLO  DAFNE",null,null,68.8,null,null,null,null,60.8,null,null,null,null,129.6]
[null,8,"J106","MONTESINOS SANTIAGO",null,null,null,null,null,null,128,null,null,null,null,null,128]
[null,9,"J040","DARQUEA GABRIEL ",null,null,null,null,null,null,null,null,null,null,null,128,128]
[null,10,"J138","PEREZ LEON SANDRO",null,null,null,57.6,null,null,null,null,null,null,null,null,57.6]
[null,11,"J123","CACERES LUCIA",null,null,null,null,null,null,null,null,null,null,57.6,null,57.6]
[null,12,"A335","JOSE MARIA CARVALLO",null,null,null,null,null,53.760000000000005,null,null,null,null,null,null,53.760000000000005]
[null,13,null,null,null,null,null,null,null,null,null,null,null,null,null,null,{"$f":"SUM(E20:P20)","v":0}]
[null,14,null,null,null,null,null,null,null,null,null,null,null,null,null,null,0]
[null,15,null,null,null,null,null,null,null,null,null,null,null,null,null,null,{"$f":"SUM(E22:P22)","v":0}]
[null,16,null,null,null,null,null,null,null,null,null,null,null,null,null,null,0]
[null,17,null,null,null,null,null,null,null,null,null,null,null,null,null,null,0]
[null,18,null,null,null,null,null,null,null,null,null,null,null,null,null,null,0]
[null,19,null,null,null,null,null,null,null,null,null,null,null,null,null,null,0]
[null,20,null,null,null,null,null,null,null,null,null,null,null,null,null,null,0]
[null,21,null,null,null,null,null,null,null,null,null,null,null,null,null,null,0]
[null,22,null,null,null,null,null,null,null,null,null,null,null,null,null,null,0]
[null,23,null,null,null,null,null,null,null,null,null,null,null,null,null,null,0]
[null,24,null,null,null,null,null,null,null,null,null,null,null,null,null,null,0]
[null,25,null,null,null,null,null,null,null,null,null,null,null,null,null,null,0]
[null,26,null,null,null,null,null,null,null,null,null,null,null,null,null,null,0]
[null,27,null,null,null,null,null,null,null,null,null,null,null,null,null,null,0]
[null,28,null,null,null,null,null,null,null,null,null,null,null,null,null,null,{"$f":"SUM(E35:P35)","v":0}]
[null,29,null,null,null,null,null,null,null,null,null,null,null,null,null,null,0]
[null,30,null,null,null,null,null,null,null,null,null,null,null,null,null,null,0]
[null,31,null,null,null,null,null,null,null,null,null,null,null,null,null,null,0]
[null,32,null,null,null,null,null,null,null,null,null,null,null,null,null,null,0]
[null,33,null,null,null,null,null,null,null,null,null,null,null,null,null,null,0]
[null,34,null,null,null,null,null,null,null,null,null,null,null,null,null,null,0]
[null,35,null,null,null,null,null,null,null,null,null,null,null,null,null,null,0]
[null,36,null,null,null,null,null,null,null,null,null,null,null,null,null,null,0]
[null,37,null,null,null,null,null,null,null,null,null,null,null,null,null,null,0]
[null,38,null,null,null,null,null,null,null,null,null,null,null,null,null,null,0]
[null,39,null,null,null,null,null,null,null,null,null,null,null,null,null,null,0]
[null,40,null,null,null,null,null,null,null,null,null,null,null,null,null,null,0]
[null,41,null,null,null,null,null,null,null,null,null,null,null,null,null,null,0]
[null,42,null,null,null,null,null,null,null,null,null,null,null,null,null,null,0]
[null,43,null,null,null,null,null,null,null,null,null,null,null,null,null,null,0]
[null,44,null,null,null,null,null,null,null,null,null,null,null,null,null,null,0]
[null,45,null,null,null,null,null,null,null,null,null,null,null,null,null,null,0]
[null,46,null,null,null,null,null,null,null,null,null,null,null,null,null,null,0]
[null,47,null,null,null,null,null,null,null,null,null,null,null,null,null,null,0]
[null,48,null,null,null,null,null,null,null,null,null,null,null,null,null,null,0]
[null,49,null,null,null,null,null,null,null,null,null,null,null,null,null,null,0]
[null,50,null,null,null,null,null,null,null,null,null,null,null,null,null,null,0]
[null,51,null,null,null,null,null,null,null,null,null,null,null,null,null,null,0]
[null,52,null,null,null,null,null,null,null,null,null,null,null,null,null,null,0]
[null,53,null,null,null,null,null,null,null,null,null,null,null,null,null,null,0]
[null,54,null,null,null,null,null,null,null,null,null,null,null,null,null,null,0]
[null,55,null,null,null,null,null,null,null,null,null,null,null,null,null,null,0]
[null,56,null,null,null,null,null,null,null,null,null,null,null,null,null,null,0]
[]
[null,null,null,null,null,null,null,null,null,null,null,{"$f":"IF(J65>=60,\"CLASIFICADO A 60 Km LIBRE y 80 Km NOVICIO\",IF(J65>=40,\"CLASIFICADO A 40 Km LIBRE y 60 Km NOVICIO\",\"\"))","v":""}]
[]
[]
[]
[]
[]
[]
[]
[]
[]
[]
[]
[]
[]
[]
[]
[]
[]
[null,null,null,null,null,null,null,null,null,null,null,{"$f":"IF(J83>=60,\"CLASIFICADO A 60 Km LIBRE y 80 Km NOVICIO\",IF(J83>=40,\"CLASIFICADO A 40 Km LIBRE y 60 Km NOVICIO\",\"\"))","v":""}]

{"sheet":"AMATEUR MENORES","index":10,"n_rows":50,"n_cols":17,"rows_kept":50,"cut":false,"hidden":false,"merged":[[5,4,5,16],[4,1,4,3],[4,4,4,16],[1,1,1,16],[2,1,2,16]]}
[]
[null,"PUNTAJE  ACUMULADO"]
[null,"CATEGORÍA MENORES NOVICIOS"]
[]
[null,"INFANTIL",null,null,"PUNTAJES"]
[null,null,null,null,2018]
[null,null,"CODIGO","JINETE","I CHONE","II CHONE","III CHONE","IV CHONE","V CHONE","VI CHONE","VII CHONE","VIII CHONE","IX CHONE","X CHONE","XI CHONE","XII CHONE","ACUMULADO"]
[null,1,"I047","ANDRADE FELIPE ANDRES",135.68,null,null,64,null,128.80000000000001,160,null,null,null,160,{"$f":"65.44+160","v":225.44},{"$f":"SUM(E8:P8)","v":873.92000000000007}]
[null,2,"M086","CARRERA BRUNO",67.84,129.6,null,60.800000000000004,null,122.36,null,null,null,null,null,152,532.6]
[null,3,"M087","CARRERA CAMILA",null,null,null,57.6,null,63.84,128,null,null,null,128,128,505.44]
[null,4,null,"LOPEZ JUAN RAFAEL",null,null,null,null,null,null,null,null,null,null,null,null,0]
[null,5,null,"DONOSO JULIAN",null,null,null,null,null,null,null,null,null,null,null,null,0]
[null,6,"J207","DARQUEA EMILIO",null,67.2,68.8,null,null,null,null,null,null,null,null,122.2,258.2]
[null,7,"M030","MARÍN CESAR JAVIER ",null,null,null,null,null,67.2,60.800000000000004,null,null,null,115.2,null,243.2]
[null,8,"M040","TORRES RAFAEL ESTEBAN",null,null,null,null,null,null,64,null,null,null,121.6,null,185.6]
[null,9,"M071","DONOSO JULIAN",null,null,null,54.400000000000006,null,60.480000000000011,null,null,null,null,null,null,114.88000000000002]
[null,10,"M037","LOPEZ JUAN RAFAEL",null,null,null,null,null,null,57.6,null,null,null,null,null,57.6]
[null,11,null,null,null,null,null,null,null,null,null,null,null,null,null,null,{"$f":"SUM(E18:P18)","v":0}]
[null,12,null,null,null,null,null,null,null,null,null,null,null,null,null,null,{"$f":"SUM(E19:P19)","v":0}]
[null,13,null,null,null,null,null,null,null,null,null,null,null,null,null,null,0]
[null,14,null,null,null,null,null,null,null,null,null,null,null,null,null,null,0]
[null,15,null,null,null,null,null,null,null,null,null,null,null,null,null,null,0]
[null,16,null,null,null,null,null,null,null,null,null,null,null,null,null,null,0]
[null,17,null,null,null,null,null,null,null,null,null,null,null,null,null,null,0]
[null,18,null,null,null,null,null,null,null,null,null,null,null,null,null,null,0]
[null,19,null,null,null,null,null,null,null,null,null,null,null,null,null,null,0]
[null,20,null,null,null,null,null,null,null,null,null,null,null,null,null,null,0]
[null,21,null,null,null,null,null,null,null,null,null,null,null,null,null,null,0]
[null,22,null,null,null,null,null,null,null,null,null,null,null,null,null,null,0]
[null,23,null,null,null,null,null,null,null,null,null,null,null,null,null,null,0]
[]
[null,null,null,null,null,null,null,null,null,null,null,{"$f":"IF(J32>=60,\"CLASIFICADO A 60 Km LIBRE y 80 Km NOVICIO\",IF(J32>=40,\"CLASIFICADO A 40 Km LIBRE y 60 Km NOVICIO\",\"\"))","v":""}]
[]
[]
[]
[]
[]
[]
[]
[]
[]
[]
[]
[]
[]
[]
[]
[]
[]
[null,null,null,null,null,null,null,null,null,null,null,{"$f":"IF(J50>=60,\"CLASIFICADO A 60 Km LIBRE y 80 Km NOVICIO\",IF(J50>=40,\"CLASIFICADO A 40 Km LIBRE y 60 Km NOVICIO\",\"\"))","v":""}]

{"sheet":"CABALLOS NOVICIOS","index":11,"n_rows":98,"n_cols":20,"rows_kept":98,"cut":false,"hidden":false,"merged":[[5,5,5,17],[4,1,4,4],[4,5,4,17],[1,1,1,17],[2,1,2,17]]}
[]
[null,"PUNTAJE  ACUMULADO"]
[null,"CATEGORÍA CABALLOS NOVICIOS"]
[]
[null,"CABALLOS  NOVICIOS",null,null,null,"PUNTAJES"]
[null,null,null,null,null,2018]
[null,null,"CODIGO","CABALLO","DUEÑO/JINETE","I CHONE","II CHONE","III CHONE","IV CHONE","V CHONE","VI CHONE","VII CHONE","VIII CHONE","IX CHONE","X CHONE","XI CHONE","XII CHONE","ACUMULADO"]
[null,1,"C561","MUNIRAH","FELIPE ANDRADE",null,null,null,64,null,128.80000000000001,160,null,null,null,160,160,{"$f":"SUM(K8:Q8)","v":608.79999999999995}]
[null,2,"C492","BERNARDA","XIMENA GONZALEZ",null,null,null,null,null,128.80000000000001,null,144,null,null,128,null,{"$f":"SUM(F9:Q9)","v":400.8}]
[null,3,"C064","SIMBA","MARIA CONSUELO VELEZ MENA",67.84,null,null,null,null,null,null,160,null,null,160,null,387.84000000000003]
[null,4,"C243","PAVITA","JUAN CARLOS ANDRADE",null,null,null,null,61.920000000000009,43.680000000000007,null,null,null,null,128,147.24,380.84000000000003,null,"º"]
[null,5,"C563","ABIGAIL","GONZALEZ SEBASTIAN",null,null,null,60.800000000000004,null,63.84,128,null,null,null,128,null,380.64]
[null,6,"C558","SAHIRA","SALTOS JUAN XAVIER",null,null,null,64,null,67.2,115.2,null,null,null,128,null,374.4]
[null,7,"C508","AMANI","MORENO PAULINA",null,null,null,54.400000000000006,null,60.480000000000011,121.60000000000001,null,null,null,121.6,null,358.08000000000004]
[null,8,"C578","JC KISS","MALO ANDREA",null,null,null,null,null,53.760000000000005,121.60000000000001,null,null,null,null,120,295.36]
[null,9,"C104","HALCON","DIEGO CASTILLO",null,63.84,61.920000000000009,null,null,null,null,null,null,null,null,121.60000000000001,247.36]
[null,10,"C409","JOYA","MARIN CESAR JAVIER",null,null,null,null,null,67.2,60.800000000000004,null,null,null,115.2,null,243.2]
[null,11,"C367","SHAKIRA CMB","CESAR MORABOWEN",null,null,null,null,null,null,null,null,null,null,115.2,128,243.2]
[null,12,"C049","KALUA","TORRES RAFAEL ESTEBAN",null,null,null,null,null,57.12,64,null,null,null,121.6,null,242.72]
[null,13,"C559","ABANERO","AGUAYO JUAN PABLO",null,null,65.36,64,null,109.48,null,null,null,null,null,null,238.84000000000003]
[null,14,"C565","JULIA MC","CESAR MORABOWEN",null,null,116.64000000000001,121.75199999999998,null,null,null,null,null,null,null,null,238.392]
[null,15,"C567","KIMI","DONOSO SEBASTIAN",null,null,null,57.6,null,47.04,108.80000000000001,null,null,null,null,null,213.44]
[null,16,"C265","COMETA","GONZALEZ JERVES XIMENA",80.559999999999988,null,null,null,null,null,115.2,null,null,null,null,null,195.76]
[null,17,"C496","TRON","LOYOLA LEONARDO",null,null,null,null,null,null,64,64,null,null,64,null,192]
[null,18,"C560","BIANCA BC","CARRERA CAMILA",null,null,null,57.6,null,null,null,null,null,null,null,128,185.6]
[null,19,"C444","QUINA","TORRES  GIORDANO",null,null,null,null,null,63.84,108.80000000000001,null,null,null,null,null,172.64000000000001]
[null,20,"C410","NAVARRA","SERRANO  ARMANDO",null,null,51.6,null,null,103.04000000000002,null,null,null,null,null,128,{"$f":"SUM(F27:P27)","v":154.64000000000001}]
[null,21,"C230","TORMENTA","ACHANCE GUIDO OSWALDO",null,null,48.16,null,null,96.600000000000009,null,null,null,null,null,null,{"$f":"SUM(F28:P28)","v":144.76}]
[null,22,"C420","JEREZ","FRANCISCO FALCONI",null,null,null,null,null,null,null,null,null,null,null,139.06,{"$f":"SUM(F29:Q29)","v":139.06}]
[null,23,"C402","ABU DABI","VINTIMILLA PABLO",null,null,137.69999999999999,null,null,null,null,null,null,null,null,null,137.69999999999999]
[null,24,"C268","DISCORDIA","FELIPE ANDRADE",135.68,null,null,null,null,null,null,null,null,null,null,null,135.68]
[null,25,"C493","SECRET DU BARTHAS","ARMANDO SERRANO",null,null,null,null,null,null,null,null,null,null,null,130.88,130.88]
[null,26,"C496","TROM","LEONARDO LOYOLA",null,null,null,null,null,null,null,null,null,null,null,130.88,130.88]
[null,27,"C059","GS RASHID","DIEGO CASTILLO",null,null,68.8,null,null,null,null,60.800000000000004,null,null,null,null,129.6]
[null,28,"C018","SILUETA","KEVIN MASAPANTA",null,null,null,null,null,128.80000000000001,null,null,null,null,null,null,128.80000000000001]
[null,29,"C550","PV ZAFIR","HURTADO HECTOR",67.84,null,null,60.800000000000004,null,null,null,null,null,null,null,null,128.64000000000001]
[null,30,"C437","PADILLA","BENITO JARAMILLO",null,null,65.36,null,null,null,null,null,null,null,null,62.167999999999999,127.52799999999999]
[null,31,"C591","SAID","EDUARDO DAVALOS",null,null,null,null,null,null,null,null,null,null,60.8,65.44,126.24]
[null,32,"C570","KARIÑO ","MARÍA CECILIA ALZAMORA ",null,null,null,null,null,null,null,57.6,null,null,null,65.44,123.03999999999999]
[null,33,"C012","PRINCIPE HA","HÉCTOR ALMEIDA PARDO",null,null,null,null,null,null,null,60.800000000000004,null,null,null,62.17,122.97]
[null,34,"C564","TEQUILA CMB","CESAR MORABOWEN",null,null,null,57.6,null,null,null,null,null,null,null,58.9,116.5]
[null,35,"C230","TORMENTA","JOSE LETORT",null,null,null,null,null,null,null,null,null,null,null,115.2,115.2]
[null,36,"C568","MELCOCHA TENHA DC","DONOSO JULIAN",null,null,null,54.400000000000006,null,60.480000000000011,null,null,null,null,null,null,114.88000000000002]
[null,37,"C436","GUARAGUA CSE","FERNANDO MONCAYO MONCAYO",null,null,55.04,null,null,57.12,null,null,null,null,null,null,112.16]
[null,38,"C493","SECRET DU BARTHAS","MARIO CANDO ",null,null,null,null,null,67.2,null,null,null,null,null,null,67.2]
[null,39,"C519","KURDA","JUAN CARLOS ANDRADE",null,null,null,null,null,null,null,null,null,null,null,65.44,65.44]
[null,40,"C515","SA TAIRA","FELIPE ANDRADE",null,null,null,null,null,null,null,null,null,null,null,65.44,65.44]
[null,41,"C014","SINTRA","ARTURO RIBADENEIRA",null,null,null,null,65.36,null,null,null,null,null,null,null,65.36]
[null,42,"C562","AZEEZA","CARRERA BRUNO",null,null,null,60.800000000000004,null,null,null,null,null,null,null,null,60.800000000000004]
[null,43,"C554","ESMERALDA","SALTOS ANA PAULA",null,null,null,null,null,null,60.800000000000004,null,null,null,null,null,60.800000000000004]
[null,44,"C462","AMARULA","JOSÉ LETORT",null,null,null,null,null,60.480000000000011,null,null,null,null,null,null,60.480000000000011]
[null,45,"C423","PIROPO","RUBIO  LUIS",null,null,58.48,null,null,null,null,null,null,null,null,null,{"$f":"SUM(F52:P52)","v":58.48}]
[null,46,"C269","ESCARLET","CACERES LUCIA",null,null,null,null,null,null,null,null,null,null,57.6,null,{"$f":"SUM(F53:Q53)","v":57.6}]
[null,47,"C397","RAYO","LOPEZ JUAN RAFAEL",null,null,null,null,null,null,57.6,null,null,null,null,null,57.6]
[null,48,"C571","NEIDA","MANUEL GARCÍA",null,null,null,null,null,null,null,54.400000000000006,null,null,null,null,54.400000000000006]
[null,49,"C469","CRISTINA","JOSE MARIA CARVALLO",null,null,null,null,null,53.760000000000005,null,null,null,null,null,null,53.760000000000005]
[null,50,"C466","PANPAMSITO","JUAN CARLOS ALVEAR",null,null,null,null,null,50.400000000000006,null,null,null,null,null,null,50.400000000000006]
[null,51,null,null,null,null,null,null,null,null,null,null,null,null,null,null,null,0]
[null,52,null,null,null,null,null,null,null,null,null,null,null,null,null,null,null,{"$f":"SUM(F59:Q59)","v":0}]
[null,53,null,null,null,null,null,null,null,null,null,null,null,null,null,null,null,{"$f":"SUM(F60:P60)","v":0}]
[null,54,null,null,null,null,null,null,null,null,null,null,null,null,null,null,null,{"$f":"SUM(F61:Q61)","v":0}]
[null,55,null,null,null,null,null,null,null,null,null,null,null,null,null,null,null,{"$f":"SUM(F62:Q62)","v":0}]
[null,56,null,null,null,null,null,null,null,null,null,null,null,null,null,null,null,{"$f":"SUM(F63:Q63)","v":0}]
[null,57,null,null,null,null,null,null,null,null,null,null,null,null,null,null,null,{"$f":"SUM(F64:Q64)","v":0}]
[null,58,null,null,null,null,null,null,null,null,null,null,null,null,null,null,null,0]
[null,59,null,null,null,null,null,null,null,null,null,null,null,null,null,null,null,0]
[null,60,null,null,null,null,null,null,null,null,null,null,null,null,null,null,null,0]
[null,61,null,null,null,null,null,null,null,null,null,null,null,null,null,null,null,0]
[null,62,null,null,null,null,null,null,null,null,null,null,null,null,null,null,null,0]
[null,63,null,null,null,null,null,null,null,null,null,null,null,null,null,null,null,0]
[null,64,null,null,null,null,null,null,null,null,null,null,null,null,null,null,null,0]
[null,65,null,null,null,null,null,null,null,null,null,null,null,null,null,null,null,0]
[null,66,null,null,null,null,null,null,null,null,null,null,null,null,null,null,null,0]
[null,67,null,null,null,null,null,null,null,null,null,null,null,null,null,null,null,{"$f":"SUM(F74:Q74)","v":0}]
[null,68,null,null,null,null,null,null,null,null,null,null,null,null,null,null,null,{"$f":"SUM(F75:Q75)","v":0}]
[null,69,null,null,null,null,null,null,null,null,null,null,null,null,null,null,null,{"$f":"SUM(F76:Q76)","v":0}]
[null,70,null,null,null,null,null,null,null,null,null,null,null,null,null,null,null,{"$f":"SUM(F77:Q77)","v":0}]
[null,71,null,null,null,null,null,null,null,null,null,null,null,null,null,null,null,{"$f":"SUM(F78:P78)","v":0}]
[null,72,null,null,null,null,null,null,null,null,null,null,null,null,null,null,null,0]
[null,73,null,null,null,null,null,null,null,null,null,null,null,null,null,null,null,0]
[null,74,null,null,null,null,null,null,null,null,null,null,null,null,null,null,null,0]
[null,75,null,null,null,null,null,null,null,null,null,null,null,null,null,null,null,0]
[null,76,null,null,null,null,null,null,null,null,null,null,null,null,null,null,null,0]
[null,77,null,null,null,null,null,null,null,null,null,null,null,null,null,null,null,0]
[null,78,null,null,null,null,null,null,null,null,null,null,null,null,null,null,null,0]
[null,79,null,null,null,null,null,null,null,null,null,null,null,null,null,null,null,0]
[null,80,null,null,null,null,null,null,null,null,null,null,null,null,null,null,null,0]
[null,81,null,null,null,null,null,null,null,null,null,null,null,null,null,null,null,0]
[null,82,null,null,null,null,null,null,null,null,null,null,null,null,null,null,null,0]
[null,83,null,null,null,null,null,null,null,null,null,null,null,null,null,null,null,0]
[null,84,null,null,null,null,null,null,null,null,null,null,null,null,null,null,null,0]
[null,85,null,null,null,null,null,null,null,null,null,null,null,null,null,null,null,0]
[null,86,null,null,null,null,null,null,null,null,null,null,null,null,null,null,null,0]
[null,87,null,null,null,null,null,null,null,null,null,null,null,null,null,null,null,0]
[null,88,null,null,null,null,null,null,null,null,null,null,null,null,null,null,null,0]
[null,89,null,null,null,null,null,null,null,null,null,null,null,null,null,null,null,0]
[null,90,null,null,null,null,null,null,null,null,null,null,null,null,null,null,null,0]
[null,91,null,null,null,null,null,null,null,null,null,null,null,null,null,null,null,0]

{"sheet":"BINOMIOS ABIERTA","index":12,"n_rows":165,"n_cols":19,"rows_kept":165,"cut":false,"hidden":false,"merged":[[1,1,1,18],[2,1,2,18],[4,1,4,3],[4,6,4,18],[5,6,5,18]]}
[]
[null,"PUNTAJE  ACUMULADO"]
[null,"CATEGORÍA BINOMIOS ABIERTA"]
[]
[null,"BINOMIOS ABIERTA",null,null,null,null,"PUNTAJES"]
[null,null,null,null,null,null,2018]
[null,null,"CODIGO","JINETE","CODIGO","CABALLO","I CHONE","II CHONE","III CHONE","IV CHONE","V CHONE","VI CHONE","VII CHONE","VIII CHONE","IX CHONE","X CHONE","XI CHONE","XII CHONE","ACUMULADO"]
[null,1,"A059","ALMEIDA AYALA HECTOR ","C410","MARAVILLA",null,null,162,null,null,{"$f":"80.5*2","v":161},null,null,null,null,null,241.8,{"$f":"SUM(G8:R8)","v":564.79999999999995}]
[null,2,"A249","ANDRADE JOSE DANIEL","C072","QUITA PENAS",null,246,null,null,null,null,160,null,null,null,null,null,406]
[null,3,"A309","HERNANDEZ MARÍA JOSÉ ","C393","SUMAYA BD",null,123.12,129.6,null,null,{"$f":"161*0.95","v":152.94999999999999},null,null,null,null,null,null,405.66999999999996]
[null,4,"A092","VINTIMILLA PABLO ","C252","BIANCA",169.6,233.7,null,null,null,null,null,null,null,null,null,null,403.29999999999995]
[null,5,"A347","GONZALEZ XIMENA ","C492","BERNARDA",null,null,null,null,null,128.80000000000001,null,144,null,null,128,null,400.8]
[null,6,"A057","DAVILA JUAN DIEGO ","C491","SOLOANDA",null,null,null,null,null,241,null,null,null,null,152,null,393]
[null,7,"A059","ALMEIDA AYALA HECTOR ","C115","AVENTURERO",null,324,null,null,null,null,null,null,null,null,null,null,324]
[null,8,"J034","ANDRADE JOSÉ DANIEL ","C064","SIMBA",null,null,null,null,null,null,null,160,null,null,160,null,320]
[null,9,"A055","WEEMAELS NATHALIE","C093","CG ALLASKI",null,307.8,null,null,null,null,null,null,null,null,null,null,307.8]
[null,10,"A249","ANDRADE JOSE DANIEL","C512","SA DREAMSHA",135.68,null,null,null,null,null,null,null,null,null,null,160,295.68]
[null,11,"A045","MORABOWEN CESAR","C446","MANDY",null,null,null,160.19999999999999,null,null,null,null,null,null,120,null,{"$f":"SUM(I18:R18)","v":280.2}]
[null,12,"A178","ANDRADE JUAN CARLOS","C243","PAVITA",null,null,null,null,null,null,null,null,null,null,128,147.24,{"$f":"SUM(G19:R19)","v":275.24}]
[null,13,"A178","ANDRADE JUAN CARLOS ","C096","AR FAISAN",null,67.2,68.8,null,null,128.80000000000001,null,null,null,null,null,null,264.8]
[null,14,"A045","MORABOWEN CESAR","C229","BULERIA CMB",null,null,145.80000000000001,null,null,null,null,null,null,null,null,112,257.8]
[null,15,"A192","LOZADA JOSE ARMANDO","C542","PV GUAPA",null,null,null,128.16,null,null,128,null,null,null,null,null,256.15999999999997]
[null,16,"A348","MENDOZA CLARA ","C400","ANGOSTURA FRODO",null,null,null,null,null,63.84,null,64,null,null,null,122.2,250.04000000000002]
[null,17,"A313","AGUAYO JUAN PABLO","C420","ABANERO",null,null,65.36,64,null,109.48,null,null,null,null,null,null,238.84000000000003]
[null,18,"J201","CALERO MARÍA ISABEL","C434","JULIA MC",null,null,116.64000000000001,121.75199999999998,null,null,null,null,null,null,null,null,238.392]
[null,19,"A092","VINTIMILLA PABLO ","C419","GH PSHYRO",null,null,null,null,null,228.95,null,null,null,null,null,null,228.95]
[null,20,"J055","LOYOLA CLAUDIA MARIA","C197","PATACON",84.8,null,null,null,null,null,144,null,null,null,null,null,228.8]
[null,21,"J015","DARQUEA ANDRÉS","C261","GRINGO",null,null,123.12,null,null,90.16,null,null,null,null,null,null,213.28]
[null,22,"A067","CANDO MARIO","C493","SECRET DU BARTHAS",null,null,null,null,null,67.2,null,null,null,null,null,130.88,198.07999999999998]
[null,23,"A240","GONZALEZ XIMENA","C265","COMETA",80.559999999999988,null,null,null,null,null,115.2,null,null,null,null,null,195.76]
[null,24,"A144","MALO ANDREA   ","C494","JC KISS",null,null,null,null,null,53.760000000000005,121.60000000000001,null,null,null,null,null,175.36]
[null,25,"A135","DONOSO SEBASTIAN","C567","KIMI",null,null,null,57.6,null,null,108.80000000000001,null,null,null,null,null,166.4]
[null,26,"A190","LOZADA ARMANDO ","C396","SC SHADID",null,null,null,null,null,null,null,null,null,null,null,163.6,163.6]
[null,27,"A033","ARMANDO SERRANO  ","C409","MONARCH",null,162,null,null,null,null,null,null,null,null,null,null,162]
[null,28,"A097","MALO ANDREA","C441","SANTOO",161.11999999999998,null,null,null,null,null,null,null,null,null,null,null,161.11999999999998]
[null,29,"A055","WEEMAELS NATHALIE","C006","RO EVITA",null,null,null,null,null,null,null,null,null,null,null,155.41999999999999,155.41999999999999]
[null,30,"A190","LOZADA ARMANDO    ","C419","GH PSHYRO",null,153.9,null,null,null,null,null,null,null,null,null,null,153.9]
[null,31,"A302","MOYA MIGUEL ANGEL","C165","DIAMANTE",null,null,153.9,null,null,null,null,null,null,null,null,null,153.9]
[null,32,"J015","DARQUEA ANDRES ","C393","SUMAYA BD",null,null,null,null,null,null,null,152,null,null,null,null,152]
[null,33,"J016","DARQUEA ANDRES ","C416","NABU",null,null,null,null,null,null,null,null,null,null,null,152,{"$f":"SUM(J40:R40)","v":152}]
[null,34,"A171","VELEZ MENA MARIA CONSUELO","C209","AISHA",null,null,null,null,null,null,152,null,null,null,null,null,{"$f":"SUM(G41:R41)","v":152}]
[null,35,"A026","LETORT MENA JOSÉ ","C046","AMARETO ",null,145.80000000000001,null,null,null,null,null,null,null,null,null,null,145.80000000000001]
[null,36,"A092","VINTIMILLA PABLO","C587","TTT TRICIA GAL",null,null,null,null,null,null,null,null,null,null,144,null,144]
[null,37,"A033","SERRANO  ARMANDO","C357","MD YALA",null,null,null,null,null,null,null,null,null,null,null,144,144]
[null,38,"A125","FALCONÍ  FRANCISCO","C420","JEREZ",null,null,null,null,null,null,null,null,null,null,null,139.06,139.06]
[null,39,"A092","VINTIMILLA SERRANO PABLO","C435","ABU DABI",null,null,137.69999999999999,null,null,null,null,null,null,null,null,null,137.69999999999999]
[null,40,"A059","ALMEIDA AYALA HECTOR","C238","CALEÑA CMB",null,null,null,null,null,null,136,null,null,null,null,null,136]
[null,41,"A059","ALMEIDA AYALA HECTOR","C097","CENTAURO",null,null,null,null,null,null,null,null,null,null,136,null,136]
[null,42,"A058","RIBADENEIRA ARTURO ","C175","CLAW",null,null,null,null,null,null,null,136,null,null,null,null,136]
[null,43,"A055","WEEMAELS NATHALIE","C016","BOX BRUMA",null,null,null,null,null,null,null,null,null,null,null,136,136]
[null,44,"A236","TATE JUNE ","C406","MARAVILLA",null,129.6,null,null,null,null,null,null,null,null,null,null,129.6]
[null,45,"A035","PORTILLA FELIPE ","C204","AR ALBATSYN",null,null,null,null,null,null,null,128,null,null,null,null,128]
[null,46,"A092","VINTIMILLA PABLO ","C542","PV GUAPA",null,null,null,null,null,null,null,null,null,null,null,128,128]
[null,47,"A064","CASTILLO  DIEGO","C104","HALCON",null,63.84,61.920000000000009,null,null,null,null,null,null,null,null,null,125.76000000000002]
[null,48,"A050","ALZAMORA MARÍA CECILIA ","C018","KARIÑO",null,null,null,null,null,null,null,57.6,null,null,null,65.44,123.03999999999999]
[null,49,"A012","ALMEIDA PARDO HÉCTOR ","C012","PRINCIPE HA",null,null,null,null,null,null,null,60.800000000000004,null,null,null,62.17,122.97]
[null,50,"A171","VELEZ MENA MARIA CONSUELO","C578","JC KISS",null,null,null,null,null,null,null,null,null,null,null,120,120]
[null,51,"A030","MONCAYO DANILO","C200","MULATA",null,null,null,null,null,115.92000000000002,null,null,null,null,null,null,115.92000000000002]
[null,52,"J209","TUTIVEN LUIS ","C243","PAVITA",null,null,null,null,61.920000000000009,47.04,null,null,null,null,null,null,108.96000000000001]
[null,53,"A351","CLARK JUSTIN ","C410","NAVARRA",null,null,null,null,null,103.04000000000002,null,null,null,null,null,null,103.04000000000002]
[null,54,"J011","BERNARDA LETORT","C230","TORMENTA",null,null,null,null,null,96.600000000000009,null,null,null,null,null,null,96.600000000000009]
[null,55,"A064","DIEGO CASTILLO","C059","GS RASHID",null,null,68.8,null,null,null,null,null,null,null,null,null,68.8]
[null,56,"A055","WEEMAELS NATHALIE","C016","BOX BRUMA",null,null,null,null,68.8,null,null,null,null,null,null,null,68.8]
[null,57,"A171","VELEZ MENA MARIA CONSUELO","C064","SIMBA",67.84,null,null,null,null,null,null,null,null,null,null,null,67.84]
[null,58,"A058","ARTURO RIBADENEIRA","C014","SINTRA",null,null,null,null,65.36,null,null,null,null,null,null,null,65.36]
[null,59,"J208","MASAPANTA  LUIS","C437","PADILLA",null,null,65.36,null,null,null,null,null,null,null,null,null,65.36]
[null,60,"A142","GONZALEZ SEBASTIAN","C563","ABIGAIL",null,null,null,60.800000000000004,null,null,null,null,null,null,null,null,60.800000000000004]
[null,61,"A333","BARBERIS NICOLE","C462","AMARULA",null,null,null,null,null,60.480000000000011,null,null,null,null,null,null,60.480000000000011]
[null,62,"A353","VANDEWALLE FAYE ","C564","TEQUILA CMB",null,null,null,null,null,null,null,null,null,null,null,58.896000000000008,58.896000000000008]
[null,63,"A315","RUBIO  LUIS","C423","PIROPO",null,null,58.48,null,null,null,null,null,null,null,null,null,58.48]
[null,64,"J220"," MONCAYO MONCAYO FERNANDO","C436","GUARAGUA CSE",null,null,null,null,null,57.12,null,null,null,null,null,null,57.12]
[null,65,"A030","MONCAYO  DANILO","C436","GUARAGUA CSE",null,null,55.04,null,null,null,null,null,null,null,null,null,55.04]
[null,66,"A033","SERRANO  ARMANDO","C410","NAVARRA",null,null,51.6,null,null,null,null,null,null,null,null,null,51.6]
[null,67,"A021","ALVEAR JUAN CARLOS ","C466","PANPAMSITO",null,null,null,null,null,50.400000000000006,null,null,null,null,null,null,50.400000000000006]
[null,68,"A326","ACHANCE GUIDO OSWALDO","C230","TORMENTA",null,null,48.16,null,null,null,null,null,null,null,null,null,48.16]
[null,69,"A135"," DONOSO  SEBASTIAN","C461","KIMI",null,null,null,null,null,43.680000000000007,null,null,null,null,null,null,43.680000000000007]
[null,70,null,null,null,null,null,null,null,null,null,null,null,null,null,null,null,null,{"$f":"SUM(G77:R77)","v":0}]
[null,71,null,null,null,null,null,null,null,null,null,null,null,null,null,null,null,null,0]
[null,72,null,null,null,null,null,null,null,null,null,null,null,null,null,null,null,null,0]
[null,73,null,null,null,null,null,null,null,null,null,null,null,null,null,null,null,null,0]
[null,74,null,null,null,null,null,null,null,null,null,null,null,null,null,null,null,null,0]
[null,75,null,null,null,null,null,null,null,null,null,null,null,null,null,null,null,null,0]
[null,76,null,null,null,null,null,null,null,null,null,null,null,null,null,null,null,null,0]
[null,77,null,null,null,null,null,null,null,null,null,null,null,null,null,null,null,null,0]
[null,78,null,null,null,null,null,null,null,null,null,null,null,null,null,null,null,null,0]
[null,79,null,null,null,null,null,null,null,null,null,null,null,null,null,null,null,null,0]
[null,80,null,null,null,null,null,null,null,null,null,null,null,null,null,null,null,null,0]
[null,81,null,null,null,null,null,null,null,null,null,null,null,null,null,null,null,null,0]
[null,82,null,null,null,null,null,null,null,null,null,null,null,null,null,null,null,null,0]
[null,83,null,null,null,null,null,null,null,null,null,null,null,null,null,null,null,null,0]
[null,84,null,null,null,null,null,null,null,null,null,null,null,null,null,null,null,null,0]
[null,85,null,null,null,null,null,null,null,null,null,null,null,null,null,null,null,null,{"$f":"SUM(G92:R92)","v":0}]
[null,86,null,null,null,null,null,null,null,null,null,null,null,null,null,null,null,null,0]
[null,87,null,null,null,null,null,null,null,null,null,null,null,null,null,null,null,null,0]
[null,88,null,null,null,null,null,null,null,null,null,null,null,null,null,null,null,null,0]
[null,89,null,null,null,null,null,null,null,null,null,null,null,null,null,null,null,null,0]
[null,90,null,null,null,null,null,null,null,null,null,null,null,null,null,null,null,null,0]
[null,91,null,null,null,null,null,null,null,null,null,null,null,null,null,null,null,null,0]
[null,92,null,null,null,null,null,null,null,null,null,null,null,null,null,null,null,null,0]
[null,93,null,null,null,null,null,null,null,null,null,null,null,null,null,null,null,null,0]
[null,94,null,null,null,null,null,null,null,null,null,null,null,null,null,null,null,null,0]
[null,95,null,null,null,null,null,null,null,null,null,null,null,null,null,null,null,null,0]
[null,96,null,null,null,null,null,null,null,null,null,null,null,null,null,null,null,null,0]
[null,97,null,null,null,null,null,null,null,null,null,null,null,null,null,null,null,null,0]
[null,98,null,null,null,null,null,null,null,null,null,null,null,null,null,null,null,null,{"$f":"SUM(G105:R105)","v":0}]
[null,99,null,null,null,null,null,null,null,null,null,null,null,null,null,null,null,null,0]
[null,100,null,null,null,null,null,null,null,null,null,null,null,null,null,null,null,null,0]
[null,101,null,null,null,null,null,null,null,null,null,null,null,null,null,null,null,null,0]
[null,102,null,null,null,null,null,null,null,null,null,null,null,null,null,null,null,null,0]
[null,103,null,null,null,null,null,null,null,null,null,null,null,null,null,null,null,null,0]
[null,104,null,null,null,null,null,null,null,null,null,null,null,null,null,null,null,null,0]
[null,105,null,null,null,null,null,null,null,null,null,null,null,null,null,null,null,null,0]
[null,106,null,null,null,null,null,null,null,null,null,null,null,null,null,null,null,null,0]
[null,107,null,null,null,null,null,null,null,null,null,null,null,null,null,null,null,null,0]
[null,108,null,null,null,null,null,null,null,null,null,null,null,null,null,null,null,null,0]
[null,109,null,null,null,null,null,null,null,null,null,null,null,null,null,null,null,null,0]
[null,110,null,null,null,null,null,null,null,null,null,null,null,null,null,null,null,null,{"$f":"SUM(G117:R117)","v":0}]
[null,111,null,null,null,null,null,null,null,null,null,null,null,null,null,null,null,null,0]
[null,112,null,null,null,null,null,null,null,null,null,null,null,null,null,null,null,null,0]
[null,113,null,null,null,null,null,null,null,null,null,null,null,null,null,null,null,null,0]
[null,114,null,null,null,null,null,null,null,null,null,null,null,null,null,null,null,null,0]
[null,115,null,null,null,null,null,null,null,null,null,null,null,null,null,null,null,null,0]
[null,116,null,null,null,null,null,null,null,null,null,null,null,null,null,null,null,null,0]
[null,117,null,null,null,null,null,null,null,null,null,null,null,null,null,null,null,null,0]
[null,118,null,null,null,null,null,null,null,null,null,null,null,null,null,null,null,null,0]
[null,119,null,null,null,null,null,null,null,null,null,null,null,null,null,null,null,null,0]
[null,120,null,null,null,null,null,null,null,null,null,null,null,null,null,null,null,null,0]
[null,121,null,null,null,null,null,null,null,null,null,null,null,null,null,null,null,null,0]
[null,122,null,null,null,null,null,null,null,null,null,null,null,null,null,null,null,null,0]
[null,123,null,null,null,null,null,null,null,null,null,null,null,null,null,null,null,null,0]
[null,124,null,null,null,null,null,null,null,null,null,null,null,null,null,null,null,null,0]
[null,125,null,null,null,null,null,null,null,null,null,null,null,null,null,null,null,null,0]
[null,126,null,null,null,null,null,null,null,null,null,null,null,null,null,null,null,null,0]
[null,127,null,null,null,null,null,null,null,null,null,null,null,null,null,null,null,null,0]
[null,128,null,null,null,null,null,null,null,null,null,null,null,null,null,null,null,null,0]
[null,129,null,null,null,null,null,null,null,null,null,null,null,null,null,null,null,null,0]
[null,130,null,null,null,null,null,null,null,null,null,null,null,null,null,null,null,null,{"$f":"SUM(G137:R137)","v":0}]
[null,131,null,null,null,null,null,null,null,null,null,null,null,null,null,null,null,null,0]
[null,132,null,null,null,null,null,null,null,null,null,null,null,null,null,null,null,null,0]
[null,133,null,null,null,null,null,null,null,null,null,null,null,null,null,null,null,null,0]
[null,134,null,null,null,null,null,null,null,null,null,null,null,null,null,null,null,null,0]
[null,135,null,null,null,null,null,null,null,null,null,null,null,null,null,null,null,null,0]
[null,136,null,null,null,null,null,null,null,null,null,null,null,null,null,null,null,null,0]
[null,137,null,null,null,null,null,null,null,null,null,null,null,null,null,null,null,null,0]
[null,138,null,null,null,null,null,null,null,null,null,null,null,null,null,null,null,null,0]
[]
[]
[]
[]
[]
[]
[]
[]
[]
[]
[]
[]
[]
[]
[]
[]
[]
[]
[]
[null,null,null,null,null,null,null,null,null,null,null,null,null,null,null,{"$f":"IF(L165>=60,\"CLASIFICADO A 60 Km LIBRE y 80 Km NOVICIO\",IF(L165>=40,\"CLASIFICADO A 40 Km LIBRE y 60 Km NOVICIO\",\"\"))","v":""}]

{"sheet":"BINOMIOS LIVIANOS","index":13,"n_rows":145,"n_cols":19,"rows_kept":145,"cut":false,"hidden":false,"merged":[[1,1,1,18],[2,1,2,18],[4,1,4,3],[4,6,4,18],[5,6,5,18]]}
[]
[null,"PUNTAJE  ACUMULADO"]
[null,"CATEGORÍA BINOMIOS LIVIANOS"]
[]
[null,"BINOMIOS LIVIANOS",null,null,null,null,"PUNTAJES"]
[null,null,null,null,null,null,2018]
[null,null,"CODIGO","JINETE","CODIGO","CABALLO","I CHONE","II CHONE","III CHONE","IV CHONE","V CHONE","VI CHONE","VII CHONE","VIII CHONE","IX CHONE","X CHONE","XI CHONE","XII CHONE","ACUMULADO"]
[null,1,"M070","ANDRADE FELIPE ANDRES","C561","MUNIRAH",null,null,null,64,null,128.80000000000001,160,null,null,null,160,160,{"$f":"SUM(L8:R8)","v":608.79999999999995}]
[null,2,"J096","LOYOLA TEODORO ANDRES","C278","JUGUETE",127.19999999999999,null,null,128,null,null,152,null,null,null,120,null,{"$f":"SUM(G9:R9)","v":527.20000000000005}]
[null,3,"J063","GONZALEZ BERNARDA ","C382","POLACO",null,null,null,null,null,241,null,null,null,null,160,null,401]
[null,4,"J136","SALTOS JUAN XAVIER","C558","SAHIRA",null,null,null,64,null,67.2,115.2,null,null,null,128,null,374.4]
[null,5,"J063","GONZALEZ BERNARDA","C004","TEQUILA",169.6,null,null,null,null,null,160,null,null,null,null,null,329.6]
[null,6,"A307","LOYOLA LEONARDO ","C572","TRON",null,null,null,null,null,null,64,64,null,null,64,130.88,322.88]
[null,7,"M032","CAMILA CARRERA ","C465","ABIGAIL ",null,null,null,null,null,63.84,128,null,null,null,128,null,319.84000000000003]
[null,8,"M086","CARRERA BRUNO","C282","MAGIC MENES",67.84,129.6,null,null,null,122.36,null,null,null,null,null,null,319.8]
[null,9,"M021","MORABOWEN MOSQUERA CESAR","C408","MANDY CMB",null,null,162,null,null,null,null,null,null,null,null,152,314]
[null,10,"J208","MASAPANTA LUIS ","C407","SALMA",null,129.6,null,null,null,161,null,null,null,null,null,null,290.60000000000002]
[null,11,"J137","DAVALOS JORGE EDUARDO","C238","CALEÑA CMB",null,null,129.6,128.16,null,null,null,null,null,null,null,null,257.76]
[null,12,"M037","MARIN CESAR JAVIER","C409","JOYA",null,null,null,null,null,67.2,60.800000000000004,null,null,null,115.2,null,243.2]
[null,13,"J098","MORENO PAULINA","C508","AMANI",null,null,null,54.400000000000006,null,60.480000000000011,121.60000000000001,null,null,null,null,null,236.48000000000002]
[null,14,"M040","TORRES RAFAEL ESTEBAN","C049","KALUA",null,null,null,null,null,null,64,null,null,null,121.60000000000001,null,185.60000000000002]
[null,15,"J140","TORRES  GIORDANO","C444","QUINA",null,null,null,null,null,63.84,108.80000000000001,null,null,null,null,null,172.64000000000001]
[null,16,"J063","GONZALEZ BERNARDA ","C232","ASRAEL",null,null,null,null,null,null,null,null,null,null,null,160,160]
[null,17,"M086","CARRERA BRUNO","C518","KARISMA VO",null,null,null,null,null,null,null,null,null,null,null,152,152]
[null,18,"J207","EMILIO DARQUEA","C143","ALI",null,67.2,68.8,null,null,null,null,null,null,null,null,null,136]
[null,19,"I047","ANDRADE FELIPE ANDRES","C268","DISCORDIA",135.68,null,null,null,null,null,null,null,null,null,null,null,135.68]
[null,20,"I019","CASTILLO  DAFNE","C059","GS RASHID",null,null,68.8,null,null,null,null,60.800000000000004,null,null,null,null,129.6]
[null,21,"J230","MASAPANTA KEVIN ","C018","SILUETA",null,null,null,null,null,128.80000000000001,null,null,null,null,null,null,128.80000000000001]
[null,22,"J100","HURTADO HECTOR","C550","PV ZAFIR",67.84,null,null,60.800000000000004,null,null,null,null,null,null,null,null,128.64000000000001]
[null,23,"I070","CARRERA CAMILA","C563","ABIGAIL",null,null,null,null,null,null,128,null,null,null,null,null,128]
[null,24,"J106","MONTESINOS SANTIAGO","C512","SA DREAMSHA",null,null,null,null,null,null,128,null,null,null,null,null,128]
[null,25,"J019","DARQUEA RICARDO ","C376","NABU",null,123.12,null,null,null,null,null,null,null,null,null,null,123.12]
[null,26,"J207","DARQUEA EMILIO ","C143","ALI",null,null,null,null,null,null,null,null,null,null,null,122.2,122.2]
[null,27,"J140","TORRES  GIORDANO","C508","AMANI",null,null,null,null,null,null,null,null,null,null,121.60000000000001,null,121.60000000000001]
[null,28,"J122","SALTOS ANA PAULA","C586","SHAKIRA CMB",null,null,null,null,null,null,null,null,null,null,115.2,null,115.2]
[null,29,"M071","DONOSO JULIAN","C568","MELCOCHA TENHA DC",null,null,null,54.400000000000006,null,60.480000000000011,null,null,null,null,null,null,114.88000000000002]
[null,30,"I047","ANDRADE FELIPE ANDRES","C515","SA TAIRA",null,null,null,null,null,null,null,null,null,null,null,65.44,65.44]
[null,31,"J208","MASAPANTA  LUIS","C437","PADILLA",null,null,65.36,null,null,null,null,null,null,null,null,null,65.36]
[null,32,"M086","CARRERA BRUNO","C562","AZEEZA",null,null,null,60.800000000000004,null,null,null,null,null,null,null,null,60.800000000000004]
[null,33,"J137","DAVALOS JORGE EDUARDO","C047","SAID HC",null,null,null,null,null,null,null,null,null,null,60.800000000000004,null,60.800000000000004]
[null,34,"A142","GONZALEZ SEBASTIAN","C563","ABIGAIL",null,null,null,60.800000000000004,null,null,null,null,null,null,null,null,60.800000000000004]
[null,35,"J122","SALTOS ANA PAULA","C554","ESMERALDA",null,null,null,null,null,null,60.800000000000004,null,null,null,null,null,60.800000000000004]
[null,36,"J123","CACERES LUCIA","C269","ESCARLET",null,null,null,null,null,null,null,null,null,null,57.6,null,57.6]
[null,37,"M087","CARRERA CAMILA","C560","BIANCA BC",null,null,null,57.6,null,null,null,null,null,null,null,null,57.6]
[null,38,"M037","LOPEZ JUAN RAFAEL","C397","RAYO",null,null,null,null,null,null,57.6,null,null,null,null,null,57.6]
[null,39,"J138","PEREZ LEON SANDRO","C564","TEQUILA CMB",null,null,null,57.6,null,null,null,null,null,null,null,null,57.6]
[null,40,"J231 ","SALTOS ANA PAULA ","C497","KALUHA",null,null,null,null,null,57.12,null,null,null,null,null,null,57.12]
[null,41,"A355","MANUEL GARCÍA","C025","NEIDA",null,null,null,null,null,null,null,54.400000000000006,null,null,null,null,54.400000000000006]
[null,42,"A335","CARVALLO JOSE MARIA ","C469","CRISTINA",null,null,null,null,null,53.760000000000005,null,null,null,null,null,null,53.760000000000005]
[null,43,null,null,null,null,null,null,null,null,null,null,null,null,null,null,null,null,{"$f":"SUM(G50:R50)","v":0}]
[null,44,null,null,null,null,null,null,null,null,null,null,null,null,null,null,null,null,0]
[null,45,null,null,null,null,null,null,null,null,null,null,null,null,null,null,null,null,0]
[null,46,null,null,null,null,null,null,null,null,null,null,null,null,null,null,null,null,0]
[null,47,null,null,null,null,null,null,null,null,null,null,null,null,null,null,null,null,0]
[null,48,null,null,null,null,null,null,null,null,null,null,null,null,null,null,null,null,0]
[null,49,null,null,null,null,null,null,null,null,null,null,null,null,null,null,null,null,0]
[null,50,null,null,null,null,null,null,null,null,null,null,null,null,null,null,null,null,0]
[null,51,null,null,null,null,null,null,null,null,null,null,null,null,null,null,null,null,0]
[null,52,null,null,null,null,null,null,null,null,null,null,null,null,null,null,null,null,0]
[null,53,null,null,null,null,null,null,null,null,null,null,null,null,null,null,null,null,0]
[null,54,null,null,null,null,null,null,null,null,null,null,null,null,null,null,null,null,0]
[null,55,null,null,null,null,null,null,null,null,null,null,null,null,null,null,null,null,0]
[null,56,null,null,null,null,null,null,null,null,null,null,null,null,null,null,null,null,0]
[null,57,null,null,null,null,null,null,null,null,null,null,null,null,null,null,null,null,0]
[null,58,null,null,null,null,null,null,null,null,null,null,null,null,null,null,null,null,0]
[null,59,null,null,null,null,null,null,null,null,null,null,null,null,null,null,null,null,0]
[null,60,null,null,null,null,null,null,null,null,null,null,null,null,null,null,null,null,0]
[null,61,null,null,null,null,null,null,null,null,null,null,null,null,null,null,null,null,0]
[null,62,null,null,null,null,null,null,null,null,null,null,null,null,null,null,null,null,0]
[null,63,null,null,null,null,null,null,null,null,null,null,null,null,null,null,null,null,0]
[null,64,null,null,null,null,null,null,null,null,null,null,null,null,null,null,null,null,0]
[null,65,null,null,null,null,null,null,null,null,null,null,null,null,null,null,null,null,0]
[null,66,null,null,null,null,null,null,null,null,null,null,null,null,null,null,null,null,{"$f":"SUM(G73:R73)","v":0}]
[null,67,null,null,null,null,null,null,null,null,null,null,null,null,null,null,null,null,0]
[null,68,null,null,null,null,null,null,null,null,null,null,null,null,null,null,null,null,0]
[null,69,null,null,null,null,null,null,null,null,null,null,null,null,null,null,null,null,0]
[null,70,null,null,null,null,null,null,null,null,null,null,null,null,null,null,null,null,0]
[null,71,null,null,null,null,null,null,null,null,null,null,null,null,null,null,null,null,0]
[null,72,null,null,null,null,null,null,null,null,null,null,null,null,null,null,null,null,0]
[null,73,null,null,null,null,null,null,null,null,null,null,null,null,null,null,null,null,0]
[null,74,null,null,null,null,null,null,null,null,null,null,null,null,null,null,null,null,0]
[null,75,null,null,null,null,null,null,null,null,null,null,null,null,null,null,null,null,0]
[null,76,null,null,null,null,null,null,null,null,null,null,null,null,null,null,null,null,0]
[null,77,null,null,null,null,null,null,null,null,null,null,null,null,null,null,null,null,0]
[null,78,null,null,null,null,null,null,null,null,null,null,null,null,null,null,null,null,0]
[null,79,null,null,null,null,null,null,null,null,null,null,null,null,null,null,null,null,0]
[null,80,null,null,null,null,null,null,null,null,null,null,null,null,null,null,null,null,0]
[null,81,null,null,null,null,null,null,null,null,null,null,null,null,null,null,null,null,0]
[null,82,null,null,null,null,null,null,null,null,null,null,null,null,null,null,null,null,0]
[null,83,null,null,null,null,null,null,null,null,null,null,null,null,null,null,null,null,0]
[null,84,null,null,null,null,null,null,null,null,null,null,null,null,null,null,null,null,0]
[null,85,null,null,null,null,null,null,null,null,null,null,null,null,null,null,null,null,0]
[null,86,null,null,null,null,null,null,null,null,null,null,null,null,null,null,null,null,0]
[null,87,null,null,null,null,null,null,null,null,null,null,null,null,null,null,null,null,0]
[null,88,null,null,null,null,null,null,null,null,null,null,null,null,null,null,null,null,0]
[null,89,null,null,null,null,null,null,null,null,null,null,null,null,null,null,null,null,0]
[null,90,null,null,null,null,null,null,null,null,null,null,null,null,null,null,null,null,0]
[null,91,null,null,null,null,null,null,null,null,null,null,null,null,null,null,null,null,0]
[null,92,null,null,null,null,null,null,null,null,null,null,null,null,null,null,null,null,0]
[null,93,null,null,null,null,null,null,null,null,null,null,null,null,null,null,null,null,0]
[null,94,null,null,null,null,null,null,null,null,null,null,null,null,null,null,null,null,0]
[null,95,null,null,null,null,null,null,null,null,null,null,null,null,null,null,null,null,0]
[null,96,null,null,null,null,null,null,null,null,null,null,null,null,null,null,null,null,0]
[null,97,null,null,null,null,null,null,null,null,null,null,null,null,null,null,null,null,0]
[null,98,null,null,null,null,null,null,null,null,null,null,null,null,null,null,null,null,0]
[null,99,null,null,null,null,null,null,null,null,null,null,null,null,null,null,null,null,0]
[null,100,null,null,null,null,null,null,null,null,null,null,null,null,null,null,null,null,0]
[null,101,null,null,null,null,null,null,null,null,null,null,null,null,null,null,null,null,0]
[null,102,null,null,null,null,null,null,null,null,null,null,null,null,null,null,null,null,0]
[null,103,null,null,null,null,null,null,null,null,null,null,null,null,null,null,null,null,0]
[null,104,null,null,null,null,null,null,null,null,null,null,null,null,null,null,null,null,0]
[null,105,null,null,null,null,null,null,null,null,null,null,null,null,null,null,null,null,0]
[null,106,null,null,null,null,null,null,null,null,null,null,null,null,null,null,null,null,0]
[null,107,null,null,null,null,null,null,null,null,null,null,null,null,null,null,null,null,0]
[null,108,null,null,null,null,null,null,null,null,null,null,null,null,null,null,null,null,0]
[null,109,null,null,null,null,null,null,null,null,null,null,null,null,null,null,null,null,0]
[null,110,null,null,null,null,null,null,null,null,null,null,null,null,null,null,null,null,0]
[null,111,null,null,null,null,null,null,null,null,null,null,null,null,null,null,null,null,0]
[null,112,null,null,null,null,null,null,null,null,null,null,null,null,null,null,null,null,0]
[null,113,null,null,null,null,null,null,null,null,null,null,null,null,null,null,null,null,0]
[null,114,null,null,null,null,null,null,null,null,null,null,null,null,null,null,null,null,0]
[null,115,null,null,null,null,null,null,null,null,null,null,null,null,null,null,null,null,0]
[null,116,null,null,null,null,null,null,null,null,null,null,null,null,null,null,null,null,0]
[null,117,null,null,null,null,null,null,null,null,null,null,null,null,null,null,null,null,0]
[null,118,null,null,null,null,null,null,null,null,null,null,null,null,null,null,null,null,0]
[null,119,null,null,null,null,null,null,null,null,null,null,null,null,null,null,null,null,0]
[null,120,null,null,null,null,null,null,null,null,null,null,null,null,null,null,null,null,0]
[null,121,null,null,null,null,null,null,null,null,null,null,null,null,null,null,null,null,0]
[null,122,null,null,null,null,null,null,null,null,null,null,null,null,null,null,null,null,0]
[null,123,null,null,null,null,null,null,null,null,null,null,null,null,null,null,null,null,0]
[null,124,null,null,null,null,null,null,null,null,null,null,null,null,null,null,null,null,0]
[null,125,null,null,null,null,null,null,null,null,null,null,null,null,null,null,null,null,0]
[null,126,null,null,null,null,null,null,null,null,null,null,null,null,null,null,null,null,0]
[null,127,null,null,null,null,null,null,null,null,null,null,null,null,null,null,null,null,0]
[null,128,null,null,null,null,null,null,null,null,null,null,null,null,null,null,null,null,0]
[null,129,null,null,null,null,null,null,null,null,null,null,null,null,null,null,null,null,0]
[null,130,null,null,null,null,null,null,null,null,null,null,null,null,null,null,null,null,{"$f":"SUM(G137:R137)","v":0}]
[null,131,null,null,null,null,null,null,null,null,null,null,null,null,null,null,null,null,0]
[null,132,null,null,null,null,null,null,null,null,null,null,null,null,null,null,null,null,0]
[null,133,null,null,null,null,null,null,null,null,null,null,null,null,null,null,null,null,0]
[null,134,null,null,null,null,null,null,null,null,null,null,null,null,null,null,null,null,0]
[null,135,null,null,null,null,null,null,null,null,null,null,null,null,null,null,null,null,0]
[null,136,null,null,null,null,null,null,null,null,null,null,null,null,null,null,null,null,0]
[null,137,null,null,null,null,null,null,null,null,null,null,null,null,null,null,null,null,0]
[null,138,null,null,null,null,null,null,null,null,null,null,null,null,null,null,null,null,0]

{"sheet":"PR MASTER","index":14,"n_rows":55,"n_cols":15,"rows_kept":55,"cut":false,"hidden":true,"merged":[[1,1,1,14],[2,1,2,14],[4,1,4,3],[4,4,4,14],[5,4,5,14]]}
[]
[null,"PUNTAJE  ACUMULADO"]
[null,"CATEGORÍA PROMOCIONAL ABIERTA"]
[]
[null,"PROMOCIONAL MASTER",null,null,"PUNTAJES"]
[null,null,null,null,2016]
[null,null,"CODIGO","JINETE","I CHONE","II CHONE","III CHONE","IV CHONE","V CHONE","VI CHONE","VII CHONE","VIII CHONE","IX CHONE","X CHONE","ACUMULADO"]
[null,1,null,null,null,null,null,null,null,null,null,null,null,null,{"$f":"SUM(E8:N8)","v":0}]
[null,2,null,null,null,null,null,null,null,null,null,null,null,null,0]
[null,3,null,null,null,null,null,null,null,null,null,null,null,null,0]
[null,4,null,null,null,null,null,null,null,null,null,null,null,null,0]
[null,5,null,null,null,null,null,null,null,null,null,null,null,null,0]
[null,6,null,null,null,null,null,null,null,null,null,null,null,null,0]
[null,7,null,null,null,null,null,null,null,null,null,null,null,null,0]
[null,8,null,null,null,null,null,null,null,null,null,null,null,null,0]
[null,9,null,null,null,null,null,null,null,null,null,null,null,null,0]
[null,10,null,null,null,null,null,null,null,null,null,null,null,null,0]
[null,11,null,null,null,null,null,null,null,null,null,null,null,null,0]
[null,12,null,null,null,null,null,null,null,null,null,null,null,null,0]
[null,13,null,null,null,null,null,null,null,null,null,null,null,null,0]
[null,14,null,null,null,null,null,null,null,null,null,null,null,null,0]
[null,15,null,null,null,null,null,null,null,null,null,null,null,null,{"$f":"SUM(E22:N22)","v":0}]
[null,16,null,null,null,null,null,null,null,null,null,null,null,null,0]
[null,17,null,null,null,null,null,null,null,null,null,null,null,null,0]
[null,18,null,null,null,null,null,null,null,null,null,null,null,null,0]
[null,19,null,null,null,null,null,null,null,null,null,null,null,null,0]
[null,20,null,null,null,null,null,null,null,null,null,null,null,null,0]
[null,21,null,null,null,null,null,null,null,null,null,null,null,null,0]
[null,22,null,null,null,null,null,null,null,null,null,null,null,null,0]
[null,23,null,null,null,null,null,null,null,null,null,null,null,null,0]
[null,24,null,null,null,null,null,null,null,null,null,null,null,null,0]
[null,25,null,null,null,null,null,null,null,null,null,null,null,null,0]
[null,26,null,null,null,null,null,null,null,null,null,null,null,null,0]
[null,27,null,null,null,null,null,null,null,null,null,null,null,null,0]
[null,28,null,null,null,null,null,null,null,null,null,null,null,null,0]
[]
[null,null,null,null,null,null,null,null,null,null,null,{"$f":"IF(J37>=60,\"CLASIFICADO A 60 Km LIBRE y 80 Km NOVICIO\",IF(J37>=40,\"CLASIFICADO A 40 Km LIBRE y 60 Km NOVICIO\",\"\"))","v":""}]
[]
[]
[]
[]
[]
[]
[]
[]
[]
[]
[]
[]
[]
[]
[]
[]
[]
[null,null,null,null,null,null,null,null,null,null,null,{"$f":"IF(J55>=60,\"CLASIFICADO A 60 Km LIBRE y 80 Km NOVICIO\",IF(J55>=40,\"CLASIFICADO A 40 Km LIBRE y 60 Km NOVICIO\",\"\"))","v":""}]

{"sheet":"PR GENERAL","index":15,"n_rows":69,"n_cols":15,"rows_kept":69,"cut":false,"hidden":false,"merged":[[1,1,1,14],[2,1,2,14],[4,1,4,3],[4,4,4,14],[5,4,5,14]]}
[]
[null,"PUNTAJE  ACUMULADO"]
[null,"CATEGORÍA PROMOCIONAL GENERAL"]
[]
[null,"PROMOCIONAL GENERAL",null,null,"PUNTAJES"]
[null,null,null,null,2018]
[null,null,"CODIGO","JINETE",null,"II CHONE","III CHONE",null,"V CHONE","VI CHONE",null,"VIII CHONE","X CHONE","XII CHONE","ACUMULADO"]
[null,1,"M028","MONCAYO CALERO FERNANDO",null,25.6,58.48,null,58.48,null,null,48.64,null,92.872000000000014,{"$f":"SUM(E8:N8)","v":284.072}]
[null,2,"A164","DÁVALOS CARLOS MANUEL ",null,23.040000000000003,49.536000000000001,null,null,null,null,null,null,62.167999999999999,134.744]
[null,3,"A312","ESTRADA CARLOS",null,null,null,null,68.8,48.384,null,null,null,null,117.184]
[null,4,"A354","ESPINOSA JUAN FERNANDO",null,null,null,null,61.92,null,null,51.2,null,null,113.12]
[null,5,"A321","JULIÁN FLORES",null,null,null,null,null,null,null,null,null,97.76,97.76]
[null,6,"J233","LANAS EMILIO JOSE",null,null,null,null,null,15,null,null,null,65.44,80.44]
[null,7,"J234","LANAS JAIME",null,null,null,null,16,null,null,null,null,62.167999999999999,78.168000000000006]
[null,8,"A331","DE MORA JUAN JOSÉ ",null,null,19.200000000000003,null,null,51.071999999999996,null,null,null,null,70.271999999999991]
[null,9,"A302","MOYA MIGUEL",null,null,null,null,null,null,null,null,null,65.44,65.44]
[null,10,"A064","CASTILLO DIEGO ",null,null,null,null,65.36,null,null,null,null,null,65.36]
[null,11,"J015"," DARQUEA ANDRES",null,null,null,null,null,null,null,null,null,58.896000000000001,58.896000000000001]
[null,12,"J214","GUERRA PATRICIA ",null,17.919999999999998,21.76,null,null,16,null,null,null,null,55.68]
[null,13,"A021","ALVEAR JUAN CARLOS",null,null,55.04,null,null,null,null,null,null,null,55.04]
[null,14,"A315","RUBIO LUIS ",null,53.76,null,null,null,null,null,null,null,null,53.76]
[null,15,"A311","CANGAS GUILLERMO ",null,null,null,null,null,53.76,null,null,null,null,53.76]
[null,16,"A316","CONTRERAS  JONATHAN",null,null,52.288000000000004,null,null,null,null,null,null,null,52.288000000000004]
[null,17,"A323","GONZALES MÓNICA",null,51.072000000000003,null,null,null,null,null,null,null,null,51.072000000000003]
[null,18,"A322","TOVAR DANIELA ",null,48.384000000000007,null,null,null,null,null,null,null,null,48.384000000000007]
[null,19,"A343","MENA JULIO ",null,null,null,null,null,null,null,46.08,null,null,46.08]
[null,20,"I024","ALZAMORA  ESTEBAN",null,null,44.032000000000004,null,null,null,null,null,null,null,44.032000000000004]
[null,21,"A359","ALEXIS PARREÑO",null,null,null,null,null,null,null,43.52,null,null,43.52]
[null,22,"J236","CALDERON JUAN JOSÉ ",null,null,null,null,null,null,null,null,null,32.32,32.32]
[null,23,"A339","CORO JORGE ",null,null,null,null,32,null,null,null,null,null,32]
[null,24,"A345","GUIDO VILLAMARIN",null,null,null,null,null,26.88,null,null,null,null,26.88]
[null,25,"J220","MONCAYO MONCAYO FERNANDO",null,null,25.6,null,null,null,null,null,null,null,25.6]
[null,26,"A010","GUSTAVO HIDALGO",null,null,null,null,null,25.535999999999998,null,null,null,null,25.535999999999998]
[null,27,"A327","NAVAS  ALEJANDRA",null,null,24.32,null,null,null,null,null,null,null,24.32]
[null,28,"A324","MONCAYO CASTILLO CARLOS ",null,24.32,null,null,null,null,null,null,null,null,24.32]
[null,29,"A352","NORA CEVALLOS",null,null,null,null,null,24.192,null,null,null,null,24.192]
[null,30,"J224","MOYA SALOMÉ",null,null,23.040000000000003,null,null,null,null,null,null,null,23.040000000000003]
[null,31,"I019","CASTILLO DAFNE ",null,21.76,null,null,null,null,null,null,null,null,21.76]
[null,32,"J225","TOVAR FIDEL",null,null,20.480000000000004,null,null,null,null,null,null,null,20.480000000000004]
[null,33,"J218","FORERO TULASY ",null,20.480000000000004,null,null,null,null,null,null,null,null,20.480000000000004]
[null,34,"A050","ALZAMORA MARÍA CECILIA ",null,19.200000000000003,null,null,null,null,null,null,null,null,19.200000000000003]
[null,35,"M020","TORRES  JONATHAN",null,null,17.919999999999998,null,null,null,null,null,null,null,17.919999999999998]
[null,36,"J080","MAHNKE  LIESEL",null,null,16.64,null,null,null,null,null,null,null,16.64]
[null,37,"J212","CORREA JUAN MARTIN ",null,16.64,null,null,null,null,null,null,null,null,16.64]
[null,38,"J222","DIAZ JOSE DAVID",null,null,15.36,null,null,null,null,null,null,null,15.36]
[null,39,"J221","CRESPO MARIA EMILIA",null,null,14.080000000000002,null,null,null,null,null,null,null,14.080000000000002]
[null,40,"A333","ALMEIDA PARDO HÉCTOR",null,null,12.8,null,null,null,null,null,null,null,12.8]
[null,41,"A330","TORO  ZYTA",null,null,12.16,null,null,null,null,null,null,null,12.16]
[null,42,"A329","RACIBORSKA  DOROTA",null,null,11.520000000000001,null,null,null,null,null,null,null,11.520000000000001]
[]
[]
[]
[]
[]
[]
[]
[]
[]
[]
[]
[]
[]
[]
[]
[]
[]
[]
[]
[null,null,null,null,null,null,null,null,null,null,null,{"$f":"IF(J69>=60,\"CLASIFICADO A 60 Km LIBRE y 80 Km NOVICIO\",IF(J69>=40,\"CLASIFICADO A 40 Km LIBRE y 60 Km NOVICIO\",\"\"))","v":""}]

{"sheet":"PR JUVENIL","index":16,"n_rows":50,"n_cols":15,"rows_kept":50,"cut":false,"hidden":true,"merged":[[1,1,1,14],[2,1,2,14],[4,1,4,3],[4,4,4,14],[5,4,5,14]]}
[]
[null,"PUNTAJE  ACUMULADO"]
[null,"CATEGORÍA PROMOCIONAL JUVENIL"]
[]
[null,"PROMOCIONAL JUVENIL",null,null,"PUNTAJES"]
[null,null,null,null,2016]
[null,null,"CODIGO","JINETE","I CHONE","II CHONE","III CHONE","IV CHONE","V CHONE","VI CHONE","VII CHONE","VIII CHONE","IX CHONE","X CHONE","ACUMULADO"]
[null,1,"J105","NOROÑA JORDAN",null,null,null,null,null,null,null,null,68.8,null,{"$f":"SUM(E8:N8)","v":68.8}]
[null,2,"J040","GABRIEL DARQUEA",null,null,null,null,null,null,null,null,null,68.8,68.8]
[null,3,"J116","BARBARA ESPINOZA",null,null,null,null,null,null,null,null,null,65.36,65.36]
[null,4,"J115","JHON CANDELEJO",null,null,null,null,null,null,null,null,null,32,32]
[null,5,null,null,null,null,null,null,null,null,null,null,null,null,0]
[null,6,null,null,null,null,null,null,null,null,null,null,null,null,0]
[null,7,null,null,null,null,null,null,null,null,null,null,null,null,0]
[null,8,null,null,null,null,null,null,null,null,null,null,null,null,0]
[null,9,null,null,null,null,null,null,null,null,null,null,null,null,0]
[null,10,null,null,null,null,null,null,null,null,null,null,null,null,0]
[null,11,null,null,null,null,null,null,null,null,null,null,null,null,0]
[null,12,null,null,null,null,null,null,null,null,null,null,null,null,0]
[null,13,null,null,null,null,null,null,null,null,null,null,null,null,{"$f":"SUM(E20:N20)","v":0}]
[null,14,null,null,null,null,null,null,null,null,null,null,null,null,0]
[null,15,null,null,null,null,null,null,null,null,null,null,null,null,0]
[null,16,null,null,null,null,null,null,null,null,null,null,null,null,0]
[null,17,null,null,null,null,null,null,null,null,null,null,null,null,0]
[null,18,null,null,null,null,null,null,null,null,null,null,null,null,0]
[null,19,null,null,null,null,null,null,null,null,null,null,null,null,0]
[null,20,null,null,null,null,null,null,null,null,null,null,null,null,0]
[null,21,null,null,null,null,null,null,null,null,null,null,null,null,0]
[null,22,null,null,null,null,null,null,null,null,null,null,null,null,0]
[null,23,null,null,null,null,null,null,null,null,null,null,null,null,0]
[]
[null,null,null,null,null,null,null,null,null,null,null,{"$f":"IF(J32>=60,\"CLASIFICADO A 60 Km LIBRE y 80 Km NOVICIO\",IF(J32>=40,\"CLASIFICADO A 40 Km LIBRE y 60 Km NOVICIO\",\"\"))","v":""}]
[]
[]
[]
[]
[]
[]
[]
[]
[]
[]
[]
[]
[]
[]
[]
[]
[]
[null,null,null,null,null,null,null,null,null,null,null,{"$f":"IF(J50>=60,\"CLASIFICADO A 60 Km LIBRE y 80 Km NOVICIO\",IF(J50>=40,\"CLASIFICADO A 40 Km LIBRE y 60 Km NOVICIO\",\"\"))","v":""}]

{"sheet":"PR MENORES","index":17,"n_rows":50,"n_cols":15,"rows_kept":50,"cut":false,"hidden":true,"merged":[[1,1,1,14],[2,1,2,14],[4,1,4,3],[4,4,4,14],[5,4,5,14]]}
[]
[null,"PUNTAJE  ACUMULADO"]
[null,"CATEGORÍA PROMOCIONAL MENORES"]
[]
[null,"PROMOCIONAL MENORES",null,null,"PUNTAJES"]
[null,null,null,null,2016]
[null,null,"CODIGO","JINETE","I CHONE","II CHONE","III CHONE","IV CHONE","V CHONE","VI CHONE","VII CHONE","VIII CHONE","IX CHONE","X CHONE","ACUMULADO"]
[null,1,"M028","CORREA JUAN MARTIN",null,null,null,null,null,null,null,null,28.8,32,{"$f":"SUM(E8:N8)","v":60.8}]
[null,2,"M031","ESPINOZA NATALIA",null,null,null,null,58.176000000000002,null,null,null,null,null,{"$f":"SUM(E9:N9)","v":58.176000000000002}]
[null,3,"I019","CASTILLO DAFNE",null,null,null,null,null,null,null,null,32,null,{"$f":"SUM(E10:N10)","v":32}]
[null,4,"I044","MOYA MILENA",null,null,null,null,null,null,null,null,30.4,null,{"$f":"SUM(E11:N11)","v":30.4}]
[null,5,null,null,null,null,null,null,null,null,null,null,null,null,{"$f":"SUM(E12:N12)","v":0}]
[null,6,null,null,null,null,null,null,null,null,null,null,null,null,0]
[null,7,null,null,null,null,null,null,null,null,null,null,null,null,0]
[null,8,null,null,null,null,null,null,null,null,null,null,null,null,0]
[null,9,null,null,null,null,null,null,null,null,null,null,null,null,0]
[null,10,null,null,null,null,null,null,null,null,null,null,null,null,0]
[null,11,null,null,null,null,null,null,null,null,null,null,null,null,0]
[null,12,null,null,null,null,null,null,null,null,null,null,null,null,0]
[null,13,null,null,null,null,null,null,null,null,null,null,null,null,0]
[null,14,null,null,null,null,null,null,null,null,null,null,null,null,0]
[null,15,null,null,null,null,null,null,null,null,null,null,null,null,0]
[null,16,null,null,null,null,null,null,null,null,null,null,null,null,0]
[null,17,null,null,null,null,null,null,null,null,null,null,null,null,0]
[null,18,null,null,null,null,null,null,null,null,null,null,null,null,0]
[null,19,null,null,null,null,null,null,null,null,null,null,null,null,0]
[null,20,null,null,null,null,null,null,null,null,null,null,null,null,0]
[null,21,null,null,null,null,null,null,null,null,null,null,null,null,0]
[null,22,null,null,null,null,null,null,null,null,null,null,null,null,0]
[null,23,null,null,null,null,null,null,null,null,null,null,null,null,0]
[]
[null,null,null,null,null,null,null,null,null,null,null,{"$f":"IF(J32>=60,\"CLASIFICADO A 60 Km LIBRE y 80 Km NOVICIO\",IF(J32>=40,\"CLASIFICADO A 40 Km LIBRE y 60 Km NOVICIO\",\"\"))","v":""}]
[]
[]
[]
[]
[]
[]
[]
[]
[]
[]
[]
[]
[]
[]
[]
[]
[]
[null,null,null,null,null,null,null,null,null,null,null,{"$f":"IF(J50>=60,\"CLASIFICADO A 60 Km LIBRE y 80 Km NOVICIO\",IF(J50>=40,\"CLASIFICADO A 40 Km LIBRE y 60 Km NOVICIO\",\"\"))","v":""}]

{"sheet":"PR INFANTIL","index":18,"n_rows":50,"n_cols":15,"rows_kept":50,"cut":false,"hidden":false,"merged":[[1,1,1,14],[2,1,2,14],[4,1,4,3],[4,4,4,14],[5,4,5,14]]}
[]
[null,"PUNTAJE  ACUMULADO"]
[null,"CATEGORÍA PROMOCIONAL INFANTIL"]
[]
[null,"PROMOCIONAL INFANTIL",null,null,"PUNTAJES"]
[null,null,null,null,2018]
[null,null,"CODIGO","JINETE","I CHONE","II CHONE","III CHONE","IV CHONE","V CHONE","VI CHONE","VII CHONE","VIII CHONE","X CHONE","XII CHONE","ACUMULADO"]
[null,1,"J068","BARAHONA MARIA EMILIA",null,null,25.6,null,68.8,53.76,null,51.2,null,122.2,{"$f":"SUM(E8:N8)","v":321.56}]
[null,2,"I050","NOBOA JULIAN ",null,null,23.040000000000003,null,32,null,null,25.6,null,null,80.640000000000015]
[null,3,"J207","EMILIO DARQUEA ",null,null,null,null,null,null,null,null,null,65.44,65.44]
[null,4,"I048","CARRERA CAMILA ",null,25.6,null,null,null,null,null,null,null,null,25.6]
[null,5,"I049","ANDRADE FELIPE ANDRÉS ",null,24.32,null,null,null,null,null,null,null,null,24.32]
[null,6,"I050","VERA  RAFAELLA",null,null,24.32,null,null,null,null,null,null,null,24.32]
[null,7,"I053","OLIVO RAFAELA ",null,null,null,null,16,null,null,null,null,null,16]
[null,8,"I052","BONILLA  DANIELA",null,null,12.8,null,null,null,null,null,null,null,12.8]
[null,9,null,null,null,null,null,null,null,null,null,null,null,null,{"$f":"SUM(E16:N16)","v":0}]
[null,10,null,null,null,null,null,null,null,null,null,null,null,null,0]
[null,11,null,null,null,null,null,null,null,null,null,null,null,null,0]
[null,12,null,null,null,null,null,null,null,null,null,null,null,null,0]
[null,13,null,null,null,null,null,null,null,null,null,null,null,null,0]
[null,14,null,null,null,null,null,null,null,null,null,null,null,null,0]
[null,15,null,null,null,null,null,null,null,null,null,null,null,null,0]
[null,16,null,null,null,null,null,null,null,null,null,null,null,null,0]
[null,17,null,null,null,null,null,null,null,null,null,null,null,null,0]
[null,18,null,null,null,null,null,null,null,null,null,null,null,null,0]
[null,19,null,null,null,null,null,null,null,null,null,null,null,null,0]
[null,20,null,null,null,null,null,null,null,null,null,null,null,null,0]
[null,21,null,null,null,null,null,null,null,null,null,null,null,null,0]
[null,22,null,null,null,null,null,null,null,null,null,null,null,null,0]
[null,23,null,null,null,null,null,null,null,null,null,null,null,null,0]
[]
[null,null,null,null,null,null,null,null,null,null,null,{"$f":"IF(J32>=60,\"CLASIFICADO A 60 Km LIBRE y 80 Km NOVICIO\",IF(J32>=40,\"CLASIFICADO A 40 Km LIBRE y 60 Km NOVICIO\",\"\"))","v":""}]
[]
[]
[]
[]
[]
[]
[]
[]
[]
[]
[]
[]
[]
[]
[]
[]
[]
[null,null,null,null,null,null,null,null,null,null,null,{"$f":"IF(J50>=60,\"CLASIFICADO A 60 Km LIBRE y 80 Km NOVICIO\",IF(J50>=40,\"CLASIFICADO A 40 Km LIBRE y 60 Km NOVICIO\",\"\"))","v":""}]

{"sheet":"PR GENERAL PREMIADA SOCIOS","index":19,"n_rows":69,"n_cols":15,"rows_kept":69,"cut":false,"hidden":false,"merged":[[1,1,1,14],[2,1,2,14],[4,1,4,3],[4,4,4,14],[5,4,5,14]]}
[]
[null,"PUNTAJE  ACUMULADO"]
[null,"CATEGORÍA PROMOCIONAL GENERAL"]
[]
[null,"PROMOCIONAL GENERAL",null,null,"PUNTAJES"]
[null,null,null,null,2018]
[null,null,"CODIGO","JINETE",null,"II CHONE","III CHONE",null,"V CHONE","VI CHONE",null,"VIII CHONE","X CHONE","XII CHONE","ACUMULADO"]
[null,1,"M028","MONCAYO CALERO FERNANDO",null,25.6,58.48,null,58.48,null,null,48.64,null,92.872000000000014,{"$f":"SUM(E8:N8)","v":284.072}]
[null,2,"J233","LANAS EMILIO JOSE",null,null,null,null,null,15,null,null,null,65.44,{"$f":"SUM(E9:N9)","v":80.44}]
[null,3,"J234","LANAS JAIME",null,null,null,null,16,null,null,null,null,62.167999999999999,{"$f":"SUM(E10:N10)","v":78.168000000000006}]
[null,4,"A302","MOYA MIGUEL",null,null,null,null,null,null,null,null,null,65.44,{"$f":"SUM(E11:N11)","v":65.44}]
[null,5,"A064","CASTILLO DIEGO ",null,null,null,null,65.36,null,null,null,null,null,{"$f":"SUM(E12:N12)","v":65.36}]
[null,6,"J214","GUERRA PATRICIA ",null,17.919999999999998,21.76,null,null,16,null,null,null,null,{"$f":"SUM(E13:N13)","v":55.68}]
[null,7,"J224","MOYA SALOMÉ",null,null,23.040000000000003,null,null,null,null,null,null,null,{"$f":"SUM(E14:N14)","v":23.040000000000003}]
[null,8,"I019","CASTILLO DAFNE ",null,21.76,null,null,null,null,null,null,null,null,{"$f":"SUM(E15:N15)","v":21.76}]
[null,9,"A333","ALMEIDA PARDO HÉCTOR",null,null,12.8,null,null,null,null,null,null,null,{"$f":"SUM(E16:N16)","v":12.8}]
[null,10,null,null,null,null,null,null,null,null,null,null,null,null,{"$f":"SUM(E17:N17)","v":0}]
[null,11,null,null,null,null,null,null,null,null,null,null,null,null,{"$f":"SUM(E18:N18)","v":0}]
[null,12,null,null,null,null,null,null,null,null,null,null,null,null,{"$f":"SUM(E19:N19)","v":0}]
[null,13,null,null,null,null,null,null,null,null,null,null,null,null,{"$f":"SUM(E20:N20)","v":0}]
[null,14,null,null,null,null,null,null,null,null,null,null,null,null,{"$f":"SUM(E21:N21)","v":0}]
[null,15,null,null,null,null,null,null,null,null,null,null,null,null,{"$f":"SUM(E22:N22)","v":0}]
[null,16,null,null,null,null,null,null,null,null,null,null,null,null,{"$f":"SUM(E23:N23)","v":0}]
[null,17,null,null,null,null,null,null,null,null,null,null,null,null,{"$f":"SUM(E24:N24)","v":0}]
[null,18,null,null,null,null,null,null,null,null,null,null,null,null,{"$f":"SUM(E25:N25)","v":0}]
[null,19,null,null,null,null,null,null,null,null,null,null,null,null,{"$f":"SUM(E26:N26)","v":0}]
[null,20,null,null,null,null,null,null,null,null,null,null,null,null,{"$f":"SUM(E27:N27)","v":0}]
[null,21,null,null,null,null,null,null,null,null,null,null,null,null,{"$f":"SUM(E28:N28)","v":0}]
[null,22,null,null,null,null,null,null,null,null,null,null,null,null,{"$f":"SUM(E29:N29)","v":0}]
[null,23,null,null,null,null,null,null,null,null,null,null,null,null,{"$f":"SUM(E30:N30)","v":0}]
[null,24,null,null,null,null,null,null,null,null,null,null,null,null,{"$f":"SUM(E31:N31)","v":0}]
[null,25,null,null,null,null,null,null,null,null,null,null,null,null,{"$f":"SUM(E32:N32)","v":0}]
[null,26,null,null,null,null,null,null,null,null,null,null,null,null,{"$f":"SUM(E33:N33)","v":0}]
[null,27,null,null,null,null,null,null,null,null,null,null,null,null,{"$f":"SUM(E34:N34)","v":0}]
[null,28,null,null,null,null,null,null,null,null,null,null,null,null,{"$f":"SUM(E35:N35)","v":0}]
[null,29,null,null,null,null,null,null,null,null,null,null,null,null,{"$f":"SUM(E36:N36)","v":0}]
[null,30,null,null,null,null,null,null,null,null,null,null,null,null,{"$f":"SUM(E37:N37)","v":0}]
[null,31,null,null,null,null,null,null,null,null,null,null,null,null,{"$f":"SUM(E38:N38)","v":0}]
[null,32,null,null,null,null,null,null,null,null,null,null,null,null,{"$f":"SUM(E39:N39)","v":0}]
[null,33,null,null,null,null,null,null,null,null,null,null,null,null,{"$f":"SUM(E40:N40)","v":0}]
[null,34,null,null,null,null,null,null,null,null,null,null,null,null,{"$f":"SUM(E41:N41)","v":0}]
[null,35,null,null,null,null,null,null,null,null,null,null,null,null,{"$f":"SUM(E42:N42)","v":0}]
[null,36,null,null,null,null,null,null,null,null,null,null,null,null,{"$f":"SUM(E43:N43)","v":0}]
[null,37,null,null,null,null,null,null,null,null,null,null,null,null,{"$f":"SUM(E44:N44)","v":0}]
[null,38,null,null,null,null,null,null,null,null,null,null,null,null,{"$f":"SUM(E45:N45)","v":0}]
[null,39,null,null,null,null,null,null,null,null,null,null,null,null,{"$f":"SUM(E46:N46)","v":0}]
[null,40,null,null,null,null,null,null,null,null,null,null,null,null,{"$f":"SUM(E47:N47)","v":0}]
[null,41]
[null,42]
[]
[]
[]
[]
[]
[]
[]
[]
[]
[]
[]
[]
[]
[]
[]
[]
[]
[]
[]
[null,null,null,null,null,null,null,null,null,null,null,{"$f":"IF(J69>=60,\"CLASIFICADO A 60 Km LIBRE y 80 Km NOVICIO\",IF(J69>=40,\"CLASIFICADO A 40 Km LIBRE y 60 Km NOVICIO\",\"\"))","v":""}]

{"sheet":"PR INFANTIL PREMIADA SOCIOS","index":20,"n_rows":50,"n_cols":15,"rows_kept":50,"cut":false,"hidden":false,"merged":[[1,1,1,14],[2,1,2,14],[4,1,4,3],[4,4,4,14],[5,4,5,14]]}
[]
[null,"PUNTAJE  ACUMULADO"]
[null,"CATEGORÍA PROMOCIONAL INFANTIL"]
[]
[null,"PROMOCIONAL INFANTIL",null,null,"PUNTAJES"]
[null,null,null,null,2018]
[null,null,"CODIGO","JINETE","I CHONE","II CHONE","III CHONE","IV CHONE","V CHONE","VI CHONE","VII CHONE","VIII CHONE","X CHONE","XII CHONE","ACUMULADO"]
[null,1,"J068","BARAHONA MARIA EMILIA",null,null,25.6,null,68.8,53.76,null,51.2,null,122.2,{"$f":"SUM(E8:N8)","v":321.56}]
[null,2,"J207","EMILIO DARQUEA ",null,null,null,null,null,null,null,null,null,65.44,{"$f":"SUM(E9:N9)","v":65.44}]
[null,3,null,null,null,null,null,null,null,null,null,null,null,null,{"$f":"SUM(E10:N10)","v":0}]
[null,4,null,null,null,null,null,null,null,null,null,null,null,null,0]
[null,5,null,null,null,null,null,null,null,null,null,null,null,null,0]
[null,6,null,null,null,null,null,null,null,null,null,null,null,null,0]
[null,7,null,null,null,null,null,null,null,null,null,null,null,null,0]
[null,8,null,null,null,null,null,null,null,null,null,null,null,null,0]
[null,9,null,null,null,null,null,null,null,null,null,null,null,null,0]
[null,10,null,null,null,null,null,null,null,null,null,null,null,null,0]
[null,11,null,null,null,null,null,null,null,null,null,null,null,null,0]
[null,12,null,null,null,null,null,null,null,null,null,null,null,null,0]
[null,13,null,null,null,null,null,null,null,null,null,null,null,null,0]
[null,14,null,null,null,null,null,null,null,null,null,null,null,null,0]
[null,15,null,null,null,null,null,null,null,null,null,null,null,null,0]
[null,16,null,null,null,null,null,null,null,null,null,null,null,null,0]
[null,17,null,null,null,null,null,null,null,null,null,null,null,null,0]
[null,18,null,null,null,null,null,null,null,null,null,null,null,null,0]
[null,19,null,null,null,null,null,null,null,null,null,null,null,null,0]
[null,20,null,null,null,null,null,null,null,null,null,null,null,null,0]
[null,21,null,null,null,null,null,null,null,null,null,null,null,null,0]
[null,22,null,null,null,null,null,null,null,null,null,null,null,null,0]
[null,23,null,null,null,null,null,null,null,null,null,null,null,null,0]
[]
[null,null,null,null,null,null,null,null,null,null,null,{"$f":"IF(J32>=60,\"CLASIFICADO A 60 Km LIBRE y 80 Km NOVICIO\",IF(J32>=40,\"CLASIFICADO A 40 Km LIBRE y 60 Km NOVICIO\",\"\"))","v":""}]
[]
[]
[]
[]
[]
[]
[]
[]
[]
[]
[]
[]
[]
[]
[]
[]
[]
[null,null,null,null,null,null,null,null,null,null,null,{"$f":"IF(J50>=60,\"CLASIFICADO A 60 Km LIBRE y 80 Km NOVICIO\",IF(J50>=40,\"CLASIFICADO A 40 Km LIBRE y 60 Km NOVICIO\",\"\"))","v":""}]

{"sheet":"PR ADULTO-MENOR","index":21,"n_rows":165,"n_cols":15,"rows_kept":165,"cut":false,"hidden":true,"merged":[[1,1,1,14],[2,1,2,14],[4,1,4,2],[4,4,4,14],[5,4,5,14]]}
[]
[null,"PUNTAJE  ACUMULADO"]
[null,"CATEGORÍA PROMOCIONAL ADULTO/MENOR"]
[]
[null,"BINOMIOS ABIERTA",null,null,"PUNTAJES"]
[null,null,null,null,2016]
[null,null,"MENOR","ADULTOS","I CHONE","II CHONE","III CHONE","IV CHONE","V CHONE","VI CHONE","VII CHONE","VIII CHONE","IX CHONE","X CHONE","ACUMULADO"]
[null,1,"CASTILLO DAFNE",null,null,null,null,null,null,null,null,null,null,null,64.64]
[null,2,"SERRANO OLIVIA",null,32.480000000000004,null,null,null,30.703999999999997,null,null,null,null,null,{"$f":"SUM(E9:N9)","v":63.183999999999997}]
[null,3,"JARA RAFAELA",null,null,null,null,null,32.32,null,null,null,null,null,32.32]
[null,4,"MOYA MARTINA",null,null,null,null,null,null,null,null,null,null,32,32]
[null,5,"CORREA DAVID",null,29.231999999999999,null,null,null,null,null,null,null,null,null,29.231999999999999]
[null,6,"DARQUEA EMILIO",null,null,null,null,null,29.088000000000001,null,null,null,null,null,29.088000000000001]
[null,7,"DIAZ DAIRA",null,27.608000000000001,null,null,null,null,null,null,null,null,null,27.608000000000001]
[null,8,"MOYA MILENA",null,21.112000000000002,null,null,null,null,null,null,null,null,null,21.112000000000002]
[null,9,null,null,null,null,null,null,null,null,null,null,null,null,{"$f":"SUM(E16:N16)","v":0}]
[null,10,null,null,null,null,null,null,null,null,null,null,null,null,0]
[null,11,null,null,null,null,null,null,null,null,null,null,null,null,0]
[null,12,null,null,null,null,null,null,null,null,null,null,null,null,0]
[null,13,null,null,null,null,null,null,null,null,null,null,null,null,0]
[null,14,null,null,null,null,null,null,null,null,null,null,null,null,0]
[null,15,null,null,null,null,null,null,null,null,null,null,null,null,0]
[null,16,null,null,null,null,null,null,null,null,null,null,null,null,0]
[null,17,null,null,null,null,null,null,null,null,null,null,null,null,0]
[null,18,null,null,null,null,null,null,null,null,null,null,null,null,0]
[null,19,null,null,null,null,null,null,null,null,null,null,null,null,0]
[null,20,null,null,null,null,null,null,null,null,null,null,null,null,0]
[null,21,null,null,null,null,null,null,null,null,null,null,null,null,0]
[null,22,null,null,null,null,null,null,null,null,null,null,null,null,0]
[null,23,null,null,null,null,null,null,null,null,null,null,null,null,0]
[null,24,null,null,null,null,null,null,null,null,null,null,null,null,0]
[null,25,null,null,null,null,null,null,null,null,null,null,null,null,0]
[null,26,null,null,null,null,null,null,null,null,null,null,null,null,0]
[null,27,null,null,null,null,null,null,null,null,null,null,null,null,0]
[null,28,null,null,null,null,null,null,null,null,null,null,null,null,0]
[null,29,null,null,null,null,null,null,null,null,null,null,null,null,0]
[null,30,null,null,null,null,null,null,null,null,null,null,null,null,0]
[null,31,null,null,null,null,null,null,null,null,null,null,null,null,0]
[null,32,null,null,null,null,null,null,null,null,null,null,null,null,0]
[null,33,null,null,null,null,null,null,null,null,null,null,null,null,0]
[null,34,null,null,null,null,null,null,null,null,null,null,null,null,0]
[null,35,null,null,null,null,null,null,null,null,null,null,null,null,0]
[null,36,null,null,null,null,null,null,null,null,null,null,null,null,0]
[null,37,null,null,null,null,null,null,null,null,null,null,null,null,0]
[null,38,null,null,null,null,null,null,null,null,null,null,null,null,0]
[null,39,null,null,null,null,null,null,null,null,null,null,null,null,0]
[null,40,null,null,null,null,null,null,null,null,null,null,null,null,0]
[null,41,null,null,null,null,null,null,null,null,null,null,null,null,0]
[null,42,null,null,null,null,null,null,null,null,null,null,null,null,0]
[null,43,null,null,null,null,null,null,null,null,null,null,null,null,0]
[null,44,null,null,null,null,null,null,null,null,null,null,null,null,0]
[null,45,null,null,null,null,null,null,null,null,null,null,null,null,0]
[null,46,null,null,null,null,null,null,null,null,null,null,null,null,0]
[null,47,null,null,null,null,null,null,null,null,null,null,null,null,0]
[null,48,null,null,null,null,null,null,null,null,null,null,null,null,0]
[null,49,null,null,null,null,null,null,null,null,null,null,null,null,0]
[null,50,null,null,null,null,null,null,null,null,null,null,null,null,0]
[null,51,null,null,null,null,null,null,null,null,null,null,null,null,0]
[null,52,null,null,null,null,null,null,null,null,null,null,null,null,0]
[null,53,null,null,null,null,null,null,null,null,null,null,null,null,0]
[null,54,null,null,null,null,null,null,null,null,null,null,null,null,0]
[null,55,null,null,null,null,null,null,null,null,null,null,null,null,0]
[null,56,null,null,null,null,null,null,null,null,null,null,null,null,0]
[null,57,null,null,null,null,null,null,null,null,null,null,null,null,0]
[null,58,null,null,null,null,null,null,null,null,null,null,null,null,0]
[null,59,null,null,null,null,null,null,null,null,null,null,null,null,{"$f":"SUM(E66:N66)","v":0}]
[null,60,null,null,null,null,null,null,null,null,null,null,null,null,0]
[null,61,null,null,null,null,null,null,null,null,null,null,null,null,0]
[null,62,null,null,null,null,null,null,null,null,null,null,null,null,0]
[null,63,null,null,null,null,null,null,null,null,null,null,null,null,0]
[null,64,null,null,null,null,null,null,null,null,null,null,null,null,0]
[null,65,null,null,null,null,null,null,null,null,null,null,null,null,0]
[null,66,null,null,null,null,null,null,null,null,null,null,null,null,0]
[null,67,null,null,null,null,null,null,null,null,null,null,null,null,{"$f":"SUM(E74:N74)","v":0}]
[null,68,null,null,null,null,null,null,null,null,null,null,null,null,0]
[null,69,null,null,null,null,null,null,null,null,null,null,null,null,0]
[null,70,null,null,null,null,null,null,null,null,null,null,null,null,0]
[null,71,null,null,null,null,null,null,null,null,null,null,null,null,0]
[null,72,null,null,null,null,null,null,null,null,null,null,null,null,0]
[null,73,null,null,null,null,null,null,null,null,null,null,null,null,0]
[null,74,null,null,null,null,null,null,null,null,null,null,null,null,0]
[null,75,null,null,null,null,null,null,null,null,null,null,null,null,0]
[null,76,null,null,null,null,null,null,null,null,null,null,null,null,0]
[null,77,null,null,null,null,null,null,null,null,null,null,null,null,0]
[null,78,null,null,null,null,null,null,null,null,null,null,null,null,0]
[null,79,null,null,null,null,null,null,null,null,null,null,null,null,0]
[null,80,null,null,null,null,null,null,null,null,null,null,null,null,0]
[null,81,null,null,null,null,null,null,null,null,null,null,null,null,0]
[null,82,null,null,null,null,null,null,null,null,null,null,null,null,0]
[null,83,null,null,null,null,null,null,null,null,null,null,null,null,0]
[null,84,null,null,null,null,null,null,null,null,null,null,null,null,0]
[null,85,null,null,null,null,null,null,null,null,null,null,null,null,0]
[null,86,null,null,null,null,null,null,null,null,null,null,null,null,0]
[null,87,null,null,null,null,null,null,null,null,null,null,null,null,0]
[null,88,null,null,null,null,null,null,null,null,null,null,null,null,0]
[null,89,null,null,null,null,null,null,null,null,null,null,null,null,0]
[null,90,null,null,null,null,null,null,null,null,null,null,null,null,0]
[null,91,null,null,null,null,null,null,null,null,null,null,null,null,0]
[null,92,null,null,null,null,null,null,null,null,null,null,null,null,0]
[null,93,null,null,null,null,null,null,null,null,null,null,null,null,0]
[null,94,null,null,null,null,null,null,null,null,null,null,null,null,0]
[null,95,null,null,null,null,null,null,null,null,null,null,null,null,0]
[null,96,null,null,null,null,null,null,null,null,null,null,null,null,0]
[null,97,null,null,null,null,null,null,null,null,null,null,null,null,0]
[null,98,null,null,null,null,null,null,null,null,null,null,null,null,0]
[null,99,null,null,null,null,null,null,null,null,null,null,null,null,0]
[null,100,null,null,null,null,null,null,null,null,null,null,null,null,0]
[null,101,null,null,null,null,null,null,null,null,null,null,null,null,0]
[null,102,null,null,null,null,null,null,null,null,null,null,null,null,0]
[null,103,null,null,null,null,null,null,null,null,null,null,null,null,0]
[null,104,null,null,null,null,null,null,null,null,null,null,null,null,0]
[null,105,null,null,null,null,null,null,null,null,null,null,null,null,0]
[null,106,null,null,null,null,null,null,null,null,null,null,null,null,0]
[null,107,null,null,null,null,null,null,null,null,null,null,null,null,0]
[null,108,null,null,null,null,null,null,null,null,null,null,null,null,0]
[null,109,null,null,null,null,null,null,null,null,null,null,null,null,0]
[null,110,null,null,null,null,null,null,null,null,null,null,null,null,0]
[null,111,null,null,null,null,null,null,null,null,null,null,null,null,0]
[null,112,null,null,null,null,null,null,null,null,null,null,null,null,0]
[null,113,null,null,null,null,null,null,null,null,null,null,null,null,0]
[null,114,null,null,null,null,null,null,null,null,null,null,null,null,0]
[null,115,null,null,null,null,null,null,null,null,null,null,null,null,0]
[null,116,null,null,null,null,null,null,null,null,null,null,null,null,0]
[null,117,null,null,null,null,null,null,null,null,null,null,null,null,0]
[null,118,null,null,null,null,null,null,null,null,null,null,null,null,0]
[null,119,null,null,null,null,null,null,null,null,null,null,null,null,0]
[null,120,null,null,null,null,null,null,null,null,null,null,null,null,0]
[null,121,null,null,null,null,null,null,null,null,null,null,null,null,0]
[null,122,null,null,null,null,null,null,null,null,null,null,null,null,0]
[null,123,null,null,null,null,null,null,null,null,null,null,null,null,0]
[null,124,null,null,null,null,null,null,null,null,null,null,null,null,0]
[null,125,null,null,null,null,null,null,null,null,null,null,null,null,0]
[null,126,null,null,null,null,null,null,null,null,null,null,null,null,0]
[null,127,null,null,null,null,null,null,null,null,null,null,null,null,0]
[null,128,null,null,null,null,null,null,null,null,null,null,null,null,0]
[null,129,null,null,null,null,null,null,null,null,null,null,null,null,0]
[null,130,null,null,null,null,null,null,null,null,null,null,null,null,0]
[null,131,null,null,null,null,null,null,null,null,null,null,null,null,{"$f":"SUM(E138:N138)","v":0}]
[null,132,null,null,null,null,null,null,null,null,null,null,null,null,0]
[null,133,null,null,null,null,null,null,null,null,null,null,null,null,0]
[null,134,null,null,null,null,null,null,null,null,null,null,null,null,0]
[null,135,null,null,null,null,null,null,null,null,null,null,null,null,0]
[null,136,null,null,null,null,null,null,null,null,null,null,null,null,0]
[null,137,null,null,null,null,null,null,null,null,null,null,null,null,0]
[null,138,null,null,null,null,null,null,null,null,null,null,null,null,0]
[]
[]
[]
[]
[]
[]
[]
[]
[]
[]
[]
[]
[]
[]
[]
[]
[]
[]
[]
[null,null,null,null,null,null,null,null,null,null,null,{"$f":"IF(J165>=60,\"CLASIFICADO A 60 Km LIBRE y 80 Km NOVICIO\",IF(J165>=40,\"CLASIFICADO A 40 Km LIBRE y 60 Km NOVICIO\",\"\"))","v":""}]